Workbook

Sheet Summary Sheet
A1: School System | B1: MFP State Allocation (Grossed up for Admin. Fee) | C1: Local Allocation (Grossed up for Admin. Fee) | D1: Total Admin. Fee
B2: 1 | C2: 2 | D2: 3
A3: New Beginnings, UNO (Capdau without Early College H.S.) | B3: ='May 2012-13 Allocation'!AB8-'May 2012-13 Allocation'!Y8 -> 1459168.347 | C3: ='May 2012-13 Allocation'!AS8-'May 2012-13 Allocation'!AP8 -> 1680405 | D3: ='May 2012-13 Allocation'!Y8+'May 2012-13 Allocation'!AP8 -> -62630.16727
A4: New Beginnings, UNO (Medard Nelson) | B4: ='May 2012-13 Allocation'!AB9-'May 2012-13 Allocation'!Y9 -> 1732334.925 | C4: ='May 2012-13 Allocation'!AS9-'May 2012-13 Allocation'!AP9 -> 1928062 | D4: ='May 2012-13 Allocation'!Y9+'May 2012-13 Allocation'!AP9 -> -73340.23394
A5: New Beginnings, UNO (Thurgood Marshall Early College HS) | B5: ='May 2012-13 Allocation'!AB10-'May 2012-13 Allocation'!Y10 -> 2524138.293 | C5: ='May 2012-13 Allocation'!AS10-'May 2012-13 Allocation'!AP10 -> 2758870 | D5: ='May 2012-13 Allocation'!Y10+'May 2012-13 Allocation'!AP10 -> -105792.4613
A6: New Beginnings, UNO Gentilly Terrace Charter School | B6: ='May 2012-13 Allocation'!AB11-'May 2012-13 Allocation'!Y11 -> 1594892.711 | C6: ='May 2012-13 Allocation'!AS11-'May 2012-13 Allocation'!AP11 -> 1785258.5 | D6: ='May 2012-13 Allocation'!Y11+'May 2012-13 Allocation'!AP11 -> -67427.87308
A7: Educators for Quality Alternatives (The NET Charter School) Not in a District Building | B7: ='May 2012-13 Allocation'!AB12-'May 2012-13 Allocation'!Y12 -> 702930.2931 | C7: ='May 2012-13 Allocation'!AS12-'May 2012-13 Allocation'!AP12 -> 747252 | D7: ='May 2012-13 Allocation'!Y12+'May 2012-13 Allocation'!AP12 -> -29003.64586
A8: Crescent Leadership Academy (Crescent Leadership Acad./Schwarz) Not in a District Building | B8: ='May 2012-13 Allocation'!AB13-'May 2012-13 Allocation'!Y13 -> 635605.1918 | C8: ='May 2012-13 Allocation'!AS13-'May 2012-13 Allocation'!AP13 -> 786324 | D8: ='May 2012-13 Allocation'!Y13+'May 2012-13 Allocation'!AP13 -> -28438.58384
A9: Future is Now (John McDonogh Senior H.S.) | B9: ='May 2012-13 Allocation'!AB14-'May 2012-13 Allocation'!Y14 -> 1633541.154 | C9: ='May 2012-13 Allocation'!AS14-'May 2012-13 Allocation'!AP14 -> 1607068 | D9: ='May 2012-13 Allocation'!Y14+'May 2012-13 Allocation'!AP14 -> -64812.18309
A10: Crescent City Schools, Inc. (Crescent City School)(Tubman) | B10: ='May 2012-13 Allocation'!AB15-'May 2012-13 Allocation'!Y15 -> 2149915.249 | C10: ='May 2012-13 Allocation'!AS15-'May 2012-13 Allocation'!AP15 -> 2198697 | D10: ='May 2012-13 Allocation'!Y15+'May 2012-13 Allocation'!AP15 -> -87136.26619
A11: Comm. Leaders Adv. Student Suc (Fannie C. Williams) | B11: ='May 2012-13 Allocation'!AB16-'May 2012-13 Allocation'!Y16 -> 2141873.914 | C11: ='May 2012-13 Allocation'!AS16-'May 2012-13 Allocation'!AP16 -> 2171430 | D11: ='May 2012-13 Allocation'!Y16+'May 2012-13 Allocation'!AP16 -> -86266.07827
A12: Lagniappe Academies, Inc. (Lagniappe Academies) Not in a District Building | B12: ='May 2012-13 Allocation'!AB17-'May 2012-13 Allocation'!Y17 -> 437543.3922 | C12: ='May 2012-13 Allocation'!AS17-'May 2012-13 Allocation'!AP17 -> 615384 | D12: ='May 2012-13 Allocation'!Y17+'May 2012-13 Allocation'!AP17 -> -21058.54784
A13: Spirit of Excellence Academy (Spirit of Exc. Academy)(Harney) | B13: ='May 2012-13 Allocation'!AB18-'May 2012-13 Allocation'!Y18 -> 1660365.288 | C13: ='May 2012-13 Allocation'!AS18-'May 2012-13 Allocation'!AP18 -> 1607068 | D13: ='May 2012-13 Allocation'!Y18+'May 2012-13 Allocation'!AP18 -> -65414.81349
A14: Morris Jeff. Community Sch, Inc. (Morris Jeff. Community School) | B14: ='May 2012-13 Allocation'!AB19-'May 2012-13 Allocation'!Y19 -> 1241617.469 | C14: ='May 2012-13 Allocation'!AS19-'May 2012-13 Allocation'!AP19 -> 1179232.5 | D14: ='May 2012-13 Allocation'!Y19+'May 2012-13 Allocation'!AP19 -> -44568.86211
A15: ReNew Schools (Live Oak Elementary) | B15: ='May 2012-13 Allocation'!AB20-'May 2012-13 Allocation'!Y20 -> 2938051.85 | C15: ='May 2012-13 Allocation'!AS20-'May 2012-13 Allocation'!AP20 -> 2666297.5 | D15: ='May 2012-13 Allocation'!Y20+'May 2012-13 Allocation'!AP20 -> -112367.3728
A16: ReNew Schools (Laurel Elementary) | B16: ='May 2012-13 Allocation'!AB21-'May 2012-13 Allocation'!Y21 -> 2879277.462 | C16: ='May 2012-13 Allocation'!AS21-'May 2012-13 Allocation'!AP21 -> 2746275 | D16: ='May 2012-13 Allocation'!Y21+'May 2012-13 Allocation'!AP21 -> -112865.2617
A17: ReNew Schools* (K-8 Charter School/Sarah Reed) | B17: ='May 2012-13 Allocation'!AB22-'May 2012-13 Allocation'!Y22 -> 2570331.166 | C17: ='May 2012-13 Allocation'!AS22-'May 2012-13 Allocation'!AP22 -> 2662362 | D17: ='May 2012-13 Allocation'!Y22+'May 2012-13 Allocation'!AP22 -> -104653.8633
A18: ReNew Schools* (ReNew Accel. H.S., City Park) | B18: ='May 2012-13 Allocation'!AB23-'May 2012-13 Allocation'!Y23 -> 748021.7654 | C18: ='May 2012-13 Allocation'!AS23-'May 2012-13 Allocation'!AP23 -> 774127 | D18: ='May 2012-13 Allocation'!Y23+'May 2012-13 Allocation'!AP23 -> -31263.08137
A19: ReNew Schools* (ReNew Accel. H.S., West Bank) | B19: ='May 2012-13 Allocation'!AB24-'May 2012-13 Allocation'!Y24 -> 777071.6347 | C19: ='May 2012-13 Allocation'!AS24-'May 2012-13 Allocation'!AP24 -> 751084 | D19: ='May 2012-13 Allocation'!Y24+'May 2012-13 Allocation'!AP24 -> -30563.11269
A20: Arise Academy (Arise Academy) | B20: ='May 2012-13 Allocation'!AB25-'May 2012-13 Allocation'!Y25 -> 1710451.34 | C20: ='May 2012-13 Allocation'!AS25-'May 2012-13 Allocation'!AP25 -> 1649028 | D20: ='May 2012-13 Allocation'!Y25+'May 2012-13 Allocation'!AP25 -> -67189.5868
A21: Success Preparatory Academy (Success Prep) | B21: ='May 2012-13 Allocation'!AB26-'May 2012-13 Allocation'!Y26 -> 1678899.18 | C21: ='May 2012-13 Allocation'!AS26-'May 2012-13 Allocation'!AP26 -> 1701524.5 | D21: ='May 2012-13 Allocation'!Y26+'May 2012-13 Allocation'!AP26 -> -67680.65468
A22: Benjamin E. Mays Schools (Benjamin Mays Prep) | B22: ='May 2012-13 Allocation'!AB27-'May 2012-13 Allocation'!Y27 -> 1240783.532 | C22: ='May 2012-13 Allocation'!AS27-'May 2012-13 Allocation'!AP27 -> 1437176.5 | D22: ='May 2012-13 Allocation'!Y27+'May 2012-13 Allocation'!AP27 -> -53723.99514
A23: Pride College Prep Academy (Pride College Prep) | B23: ='May 2012-13 Allocation'!AB28-'May 2012-13 Allocation'!Y28 -> 1191805.345 | C23: ='May 2012-13 Allocation'!AS28-'May 2012-13 Allocation'!AP28 -> 1342720 | D23: ='May 2012-13 Allocation'!Y28+'May 2012-13 Allocation'!AP28 -> -50690.5069
A24: Advocates for Arts and Tech. (Crocker Arts) | B24: ='May 2012-13 Allocation'!AB29-'May 2012-13 Allocation'!Y29 -> 960823.2945 | C24: ='May 2012-13 Allocation'!AS29-'May 2012-13 Allocation'!AP29 -> 1038410 | D24: ='May 2012-13 Allocation'!Y29+'May 2012-13 Allocation'!AP29 -> -39987.82119
A25: Intercultural Charter School Brd. (Intercultural Charter) | B25: ='May 2012-13 Allocation'!AB30-'May 2012-13 Allocation'!Y30 -> 1511076.181 | C25: ='May 2012-13 Allocation'!AS30-'May 2012-13 Allocation'!AP30 -> 1613362 | D25: ='May 2012-13 Allocation'!Y30+'May 2012-13 Allocation'!AP30 -> -62488.76362
A26: Crescent City Schools, Inc. (Akili Academy) | B26: ='May 2012-13 Allocation'!AB31-'May 2012-13 Allocation'!Y31 -> 1622201.033 | C26: ='May 2012-13 Allocation'!AS31-'May 2012-13 Allocation'!AP31 -> 1607068 | D26: ='May 2012-13 Allocation'!Y31+'May 2012-13 Allocation'!AP31 -> -64585.38066
A27: Advocates for Science & Math (Sci Academy) | B27: ='May 2012-13 Allocation'!AB32-'May 2012-13 Allocation'!Y32 -> 2009053.689 | C27: ='May 2012-13 Allocation'!AS32-'May 2012-13 Allocation'!AP32 -> 1607161 | D27: ='May 2012-13 Allocation'!Y32+'May 2012-13 Allocation'!AP32 -> -72426.69723
A28: Collegiate Academies (G.W. Carver Collegiate Academy) | B28: ='May 2012-13 Allocation'!AB33-'May 2012-13 Allocation'!Y33 -> 479311.5286 | C28: ='May 2012-13 Allocation'!AS33-'May 2012-13 Allocation'!AP33 -> 436384 | D28: ='May 2012-13 Allocation'!Y33+'May 2012-13 Allocation'!AP33 -> -18313.91057
A29: Collegiate Academies (G.W. Carver Preparatory Academy) | B29: ='May 2012-13 Allocation'!AB34-'May 2012-13 Allocation'!Y34 -> 442116.3928 | C29: ='May 2012-13 Allocation'!AS34-'May 2012-13 Allocation'!AP34 -> 440580 | D29: ='May 2012-13 Allocation'!Y34+'May 2012-13 Allocation'!AP34 -> -17653.92786
A30: Miller-McCoy Academy (Miller-McCoy Academy) | B30: ='May 2012-13 Allocation'!AB35-'May 2012-13 Allocation'!Y35 -> 1830650.552 | C30: ='May 2012-13 Allocation'!AS35-'May 2012-13 Allocation'!AP35 -> 1644471.5 | D30: ='May 2012-13 Allocation'!Y35+'May 2012-13 Allocation'!AP35 -> -69750.9582
A31: N.O. College Prep Academies (N. O. College Prep /S. Williams) | B31: ='May 2012-13 Allocation'!AB36-'May 2012-13 Allocation'!Y36 -> 1391415.178 | C31: ='May 2012-13 Allocation'!AS36-'May 2012-13 Allocation'!AP36 -> 1485477 | D31: ='May 2012-13 Allocation'!Y36+'May 2012-13 Allocation'!AP36 -> -57811.95564
A32: N. O. College Prep (Cohen College Prep) | B32: ='May 2012-13 Allocation'!AB37-'May 2012-13 Allocation'!Y37 -> 2218836.127 | C32: ='May 2012-13 Allocation'!AS37-'May 2012-13 Allocation'!AP37 -> 2087510 | D32: ='May 2012-13 Allocation'!Y37+'May 2012-13 Allocation'!AP37 -> -86126.92253
A33: Broadmoor Charter (Andrew H. Wilson/Mc #7) | B33: ='May 2012-13 Allocation'!AB38-'May 2012-13 Allocation'!Y38 -> 2501256.552 | C33: ='May 2012-13 Allocation'!AS38-'May 2012-13 Allocation'!AP38 -> 2521689 | D33: ='May 2012-13 Allocation'!Y38+'May 2012-13 Allocation'!AP38 -> -100625.3311
A34: Dryades YMCA (James M. Singleton Charter Middle) Not in a District Building | B34: ='May 2012-13 Allocation'!AB39-'May 2012-13 Allocation'!Y39 -> 2190712.673 | C34: ='May 2012-13 Allocation'!AS39-'May 2012-13 Allocation'!AP39 -> 2932842 | D34: ='May 2012-13 Allocation'!Y39+'May 2012-13 Allocation'!AP39 -> -102537.2412
A35: Friends of King (Martin Luther King Elem.) | B35: ='May 2012-13 Allocation'!AB40-'May 2012-13 Allocation'!Y40 -> 2528633.933 | C35: ='May 2012-13 Allocation'!AS40-'May 2012-13 Allocation'!AP40 -> 2888992.5 | D35: ='May 2012-13 Allocation'!Y40+'May 2012-13 Allocation'!AP40 -> -108450.9279
A36: Friends of King (Joseph A. Craig) | B36: ='May 2012-13 Allocation'!AB41-'May 2012-13 Allocation'!Y41 -> 1549806.927 | C36: ='May 2012-13 Allocation'!AS41-'May 2012-13 Allocation'!AP41 -> 1420346 | D36: ='May 2012-13 Allocation'!Y41+'May 2012-13 Allocation'!AP41 -> -59403.05854
A37: New Orleans Charter School Fdtn. (Mc #28 City Park) | B37: ='May 2012-13 Allocation'!AB42-'May 2012-13 Allocation'!Y42 -> 1515790.134 | C37: ='May 2012-13 Allocation'!AS42-'May 2012-13 Allocation'!AP42 -> 1774754.5 | D37: ='May 2012-13 Allocation'!Y42+'May 2012-13 Allocation'!AP42 -> -65896.17807
A38: Choice Foundation (Lafayette Academy) | B38: ='May 2012-13 Allocation'!AB43-'May 2012-13 Allocation'!Y43 -> 3630568.849 | C38: ='May 2012-13 Allocation'!AS43-'May 2012-13 Allocation'!AP43 -> 3742825 | D38: ='May 2012-13 Allocation'!Y43+'May 2012-13 Allocation'!AP43 -> -147632.5156
A39: Choice Foundation (Esperanza/Crossman) | B39: ='May 2012-13 Allocation'!AB44-'May 2012-13 Allocation'!Y44 -> 1916627.138 | C39: ='May 2012-13 Allocation'!AS44-'May 2012-13 Allocation'!AP44 -> 1940596.5 | D39: ='May 2012-13 Allocation'!Y44+'May 2012-13 Allocation'!AP44 -> -77253.49528
A40: Choice Foundation (Takeover) (McDonogh #42) | B40: ='May 2012-13 Allocation'!AB45-'May 2012-13 Allocation'!Y45 -> 1551632.473 | C40: ='May 2012-13 Allocation'!AS45-'May 2012-13 Allocation'!AP45 -> 1781202 | D40: ='May 2012-13 Allocation'!Y45+'May 2012-13 Allocation'!AP45 -> -66656.68946
A41: Algiers Charter School Assoc. (Martin Behrman) | B41: ='May 2012-13 Allocation'!AB46-'May 2012-13 Allocation'!Y46 -> 2625225.424 | C41: ='May 2012-13 Allocation'!AS46-'May 2012-13 Allocation'!AP46 -> 2826052.5 | D41: ='May 2012-13 Allocation'!Y46+'May 2012-13 Allocation'!AP46 -> -109163.2108
A42: Algiers Charter School Assoc. (Dwight D. Eisenhower) | B42: ='May 2012-13 Allocation'!AB47-'May 2012-13 Allocation'!Y47 -> 2346618.61 | C42: ='May 2012-13 Allocation'!AS47-'May 2012-13 Allocation'!AP47 -> 2488160.5 | D42: ='May 2012-13 Allocation'!Y47+'May 2012-13 Allocation'!AP47 -> -97175.40252
A43: Algiers Charter School Assoc. (William J. Fischer) | B43: ='May 2012-13 Allocation'!AB48-'May 2012-13 Allocation'!Y48 -> 2545088.634 | C43: ='May 2012-13 Allocation'!AS48-'May 2012-13 Allocation'!AP48 -> 2641293.5 | D43: ='May 2012-13 Allocation'!Y48+'May 2012-13 Allocation'!AP48 -> -104699.1705
A44: Algiers Charter School Assoc. (McDonogh #32) | B44: ='May 2012-13 Allocation'!AB49-'May 2012-13 Allocation'!Y49 -> 1926849.482 | C44: ='May 2012-13 Allocation'!AS49-'May 2012-13 Allocation'!AP49 -> 1907100.5 | D44: ='May 2012-13 Allocation'!Y49+'May 2012-13 Allocation'!AP49 -> -77620.62614
A45: Algiers Charter School Assoc. (O. P. Walker Sr. High) | B45: ='May 2012-13 Allocation'!AB50-'May 2012-13 Allocation'!Y50 -> 3780753.35 | C45: ='May 2012-13 Allocation'!AS50-'May 2012-13 Allocation'!AP50 -> 3717921 | D45: ='May 2012-13 Allocation'!Y50+'May 2012-13 Allocation'!AP50 -> -151070.4014
A46: Algiers Charter School Assoc. (ACSA Tech High at Rosenwald) | B46: ='May 2012-13 Allocation'!AB51-'May 2012-13 Allocation'!Y51 -> 1109356.644 | C46: ='May 2012-13 Allocation'!AS51-'May 2012-13 Allocation'!AP51 -> 1021402.5 | D46: ='May 2012-13 Allocation'!Y51+'May 2012-13 Allocation'!AP51 -> -44470.2792
A47: Instititute of Academic Excellence, SUNO (Sophie B. Wright) | B47: ='May 2012-13 Allocation'!AB52-'May 2012-13 Allocation'!Y52 -> 1851073.701 | C47: ='May 2012-13 Allocation'!AS52-'May 2012-13 Allocation'!AP52 -> 2028766 | D47: ='May 2012-13 Allocation'!Y52+'May 2012-13 Allocation'!AP52 -> -77596.79401
A48: KIPP New Orleans (Edward Phillips/Kipp Believe) | B48: ='May 2012-13 Allocation'!AB53-'May 2012-13 Allocation'!Y53 -> 2432974.243 | C48: ='May 2012-13 Allocation'!AS53-'May 2012-13 Allocation'!AP53 -> 2559560 | D48: ='May 2012-13 Allocation'!Y53+'May 2012-13 Allocation'!AP53 -> -100102.0594
A49: KIPP New Orleans (McDonogh #15) | B49: ='May 2012-13 Allocation'!AB54-'May 2012-13 Allocation'!Y54 -> 3135709.018 | C49: ='May 2012-13 Allocation'!AS54-'May 2012-13 Allocation'!AP54 -> 3223954 | D49: ='May 2012-13 Allocation'!Y54+'May 2012-13 Allocation'!AP54 -> -126640.359
A50: KIPP New Orleans (KIPP Central City Academy) | B50: ='May 2012-13 Allocation'!AB55-'May 2012-13 Allocation'!Y55 -> 1670709.109 | C50: ='May 2012-13 Allocation'!AS55-'May 2012-13 Allocation'!AP55 -> 1690967 | D50: ='May 2012-13 Allocation'!Y55+'May 2012-13 Allocation'!AP55 -> -67901.6025
A51: KIPP New Orleans, Inc. (Kipp Central City Primary) | B51: ='May 2012-13 Allocation'!AB56-'May 2012-13 Allocation'!Y56 -> 1342047.735 | C51: ='May 2012-13 Allocation'!AS56-'May 2012-13 Allocation'!AP56 -> 1260851.5 | D51: ='May 2012-13 Allocation'!Y56+'May 2012-13 Allocation'!AP56 -> -52043.74665
A52: KIPP New Orleans, Inc. (Kipp Central City Primary) K-1 not in a District Building | B52: ='May 2012-13 Allocation'!AB57-'May 2012-13 Allocation'!Y57 -> 681388.2632 | C52: ='May 2012-13 Allocation'!AS57-'May 2012-13 Allocation'!AP57 -> 1040292 | D52: ='May 2012-13 Allocation'!Y57+'May 2012-13 Allocation'!AP57 -> -34433.60526
A53: KIPP New Orleans, Inc. (Kipp Renaissance High School) | B53: ='May 2012-13 Allocation'!AB58-'May 2012-13 Allocation'!Y58 -> 1565388.895 | C53: ='May 2012-13 Allocation'!AS58-'May 2012-13 Allocation'!AP58 -> 1495839 | D53: ='May 2012-13 Allocation'!Y58+'May 2012-13 Allocation'!AP58 -> -62102.55982
A54: KIPP New Orleans, Inc. Kipp N. O. Leadership Academy) | B54: ='May 2012-13 Allocation'!AB59-'May 2012-13 Allocation'!Y59 -> 2251616.838 | C54: ='May 2012-13 Allocation'!AS59-'May 2012-13 Allocation'!AP59 -> 2177710 | D54: ='May 2012-13 Allocation'!Y59+'May 2012-13 Allocation'!AP59 -> -88980.7269
A55: Firstline Schools, Inc. (Samuel J. Green) | B55: ='May 2012-13 Allocation'!AB60-'May 2012-13 Allocation'!Y60 -> 2373062.846 | C55: ='May 2012-13 Allocation'!AS60-'May 2012-13 Allocation'!AP60 -> 2146254 | D55: ='May 2012-13 Allocation'!Y60+'May 2012-13 Allocation'!AP60 -> -90386.33693
A56: Firstline Schools, Inc. (N. O. Charter Middle at Ashe) | B56: ='May 2012-13 Allocation'!AB61-'May 2012-13 Allocation'!Y61 -> 2308663.613 | C56: ='May 2012-13 Allocation'!AS61-'May 2012-13 Allocation'!AP61 -> 2045550 | D56: ='May 2012-13 Allocation'!Y61+'May 2012-13 Allocation'!AP61 -> -87176.88567
A57: Firstline Schools, Inc.* (Firstline H.S. Charter)(Clark) | B57: ='May 2012-13 Allocation'!AB62-'May 2012-13 Allocation'!Y62 -> 1999085.827 | C57: ='May 2012-13 Allocation'!AS62-'May 2012-13 Allocation'!AP62 -> 1718227 | D57: ='May 2012-13 Allocation'!Y62+'May 2012-13 Allocation'!AP62 -> -75166.36261
A58: Firstline Schools, Inc. (Dibert School) | B58: ='May 2012-13 Allocation'!AB63-'May 2012-13 Allocation'!Y63 -> 2193432.293 | C58: ='May 2012-13 Allocation'!AS63-'May 2012-13 Allocation'!AP63 -> 1988904 | D58: ='May 2012-13 Allocation'!Y63+'May 2012-13 Allocation'!AP63 -> -83646.72587
A59: Firstline Schools, Inc. (Langston Hughes Academy) | B59: ='May 2012-13 Allocation'!AB64-'May 2012-13 Allocation'!Y64 -> 2801502.15 | C59: ='May 2012-13 Allocation'!AS64-'May 2012-13 Allocation'!AP64 -> 2710616 | D59: ='May 2012-13 Allocation'!Y64+'May 2012-13 Allocation'!AP64 -> -110242.363
A60: Total RSD Chartered | B60: =SUM(B3:B59) -> 104439678.8 | C60: =SUM(C3:C59) -> 106448737.5 | D60: -4225108.145

Sheet May 2012-13 Allocation
E1: Continuation of Prior Year Pay Raises | H1: Final Special Education Allocation | P1: Mid-Year Adjustment for Students (State Portion) | W1: State Administration Fee | AA1: State Audit Adjustments | AH1: Mid-Year Adjustment for Students (Local Portion) | AN1: Administrative Fee | AR1: Local Audit Adjustments | AZ1: =AV66-BA1 -> 3558280.505 | BA1: 9126924 | BB1: end of Table 2
A2: Site Code | B2: LEA | C2: Feb. 1, 2012 MFP Membership (Per SIS)* | D2: State Share Allocation Base Amount | E2: Continuation of Prior Year Pay Raises (FY2001-02 through FY2008-09) Per Pupil Amount | F2: Continuation of Prior Year Pay Raises | G2: State Share Allocation Base Amount + Continuation of Pay Raises | H2: MFP Special Education Students Level 1 | I2: MFP Special Education Funding Level 1 | J2: MFP Special Education Students Level 2 | K2: MFP Special Education Funding Level 2 | L2: MFP Special Education Students Level 3 | M2: MFP Special Education Funding Level 3 | N2: Special Education Total Allocation | O2: State Share Allocation Base Amount + Continuation of Pay Raises + Special Ed Allocation | P2: October 1 Mid-Year Allocation (per October 1 Mid-Year Adjustment, Column 9) | Q2: Change in Funded Student Count | R2: Adjustment for Differentiated Funding per Pupil | S2: Total October 1 Mid-Year Adjustment | T2: Total Feb. 1 Mid-Year Allocation (per Feb. 1 Mid-Year Adjustment, Column 9) | U2: Total Mid-Year Adjust- ment for Students | V2: State Share Allocation Base Amount + Continuation of Pay Raises + Special Ed Allocation +/- Mid-year Adjustments for Students | W2: Admin. Fee to RSD | X2: Admin. Fee to LDOE | Y2: Total Admin. Fee | Z2: State Share Allocation Base Amount + Continuation of Pay Raises + Special Ed Allocation +/- Mid-year Adjustments +/- Admin. Fee | AA2: Audit Adjust- ments FY2011-12 MFP (Includes 2/1 midyear from FY2010-11 | AB2: State Share Allocation Base Amount + Continuation of Pay Raises + Special Ed Allocation +/- Mid-year Adjustments +/- Admin. Fee +/- State Audit Adjustments | AC2: YTD State Payments through April 2013 | AD2: Balance Due May 2013 through June 2013 | AE2: State Monthly Payment Amount | AF2: Final Local Share Allocation Base Amount (In a District Building) | AG2: Final Local Share Allocation Base Amount (Not In a District Building) | AH2: October 1 Change in Funded Student Count | AI2: October 1 Mid-year Adjustment (Local Portion) | AJ2: February 1 Change in Funded Count | AK2: February 1 Mid-Year Allocation (one-half the per-pupil amount) | AL2: Total Mid-Year Adjustment for Students | AM2: Local Share Allocation Base Amount +/- Mid-Year Adjustment for Students | AN2: Admin. Fee to RSD | AO2: Admin. Fee to LDOE | AP2: Total Admin. Fee | AQ2: Local Share Allocation Base Amount +/- Mid-Year Adjustment for Students +/- Admin. Fee | AR2: Audit Adjs. FY2011-12 MFP (also includes 2/1 midyear from FY2010-11) | AS2: Local Share Allocation Base Amount +/- Mid-Year Adjustment for Students +/- Admin. Fee +/- Local Audit Adjustments | AT2: YTD State Payments through April 2013 | AU2: Balance Due May 2013 through June 2013 | AV2: Local Monthly Payment Amount | AX2: Combined State & Local Payment Amount | AY2: Combined State & Local Monthly Payment Amount | AZ2: Orleans Local Payment to RSD from Orleans Monthly MFP Payment Sept. 2012 | BA2: Orleans Local Payment Balance due to RSD from Local Transfer by OPSB Sept. 2012
A3: Sitecode | D3: ='[1]Diff Funding Calculation'!$D$32 -> 2457.692416 | I3: ='[1]Diff Funding Calculation'!$D$44 -> 1437.020342 | K3: ='[1]Diff Funding Calculation'!$D$45 -> 8622.122054 | M3: ='[1]Diff Funding Calculation'!$D$46 -> 15807.22377 | R3: =-'[1]Diff Funding Calculation'!$D$31 -> -985.062267 | W3: 0.0175 | X3: 0.0025 | AF3: ='[2]FY2012-13 Final'!$D$43 -> 4196 | AG3: ='[2]FY2012-13 Final'!$K$43 -> 4884 | AN3: 0.0175 | AO3: 0.0025
C4: 1 | D4: =C4+1 -> 2 | E4: 3 | F4: =E4+1 -> 4 | G4: =F4+1 -> 5 | H4: =G4+1 -> 6 | I4: =H4+1 -> 7 | J4: =I4+1 -> 8 | K4: =J4+1 -> 9 | L4: =K4+1 -> 10 | M4: =L4+1 -> 11 | N4: =M4+1 -> 12 | O4: =N4+1 -> 13 | P4: =O4+1 -> 14 | Q4: =P4+1 -> 15 | R4: =Q4+1 -> 16 | S4: =R4+1 -> 17 | T4: =S4+1 -> 18 | U4: =T4+1 -> 19 | V4: =U4+1 -> 20 | W4: =V4+1 -> 21 | X4: =W4+1 -> 22 | Y4: =X4+1 -> 23 | Z4: =Y4+1 -> 24 | AA4: =Z4+1 -> 25 | AB4: =AA4+1 -> 26 | AC4: =AB4+1 -> 27 | AD4: =AC4+1 -> 28 | AE4: =AD4+1 -> 29 | AF4: =AE4+1 -> 30 | AG4: =AF4+1 -> 31 | AH4: =AG4+1 -> 32 | AI4: =AH4+1 -> 33 | AJ4: =AI4+1 -> 34 | AK4: =AJ4+1 -> 35 | AL4: =AK4+1 -> 36 | AM4: =AL4+1 -> 37 | AN4: =AM4+1 -> 38 | AO4: =AN4+1 -> 39 | AP4: =AO4+1 -> 40 | AQ4: =AP4+1 -> 41 | AR4: =AQ4+1 -> 42 | AS4: =AR4+1 -> 43 | AT4: =AS4+1 -> 44 | AU4: =AT4+1 -> 45 | AV4: =AU4+1 -> 46 | AX4: =AV4+1 -> 47 | AY4: =AX4+1 -> 48 | AZ4: =AY4+1 -> 49 | BA4: =AZ4+1 -> 50
A5: 3960xx | B5: Recovery School District RSD Operated | C5: ='[3]Table 5B1_RSD_Orleans'!$C$8 -> 4653 | D5: =ROUND(C5*$D$3,0) -> 11435643 | E5: ='[3]Table 5B1_RSD_Orleans'!$F$8 -> 797.0524449 | F5: =E5*C5 -> 3708685.026 | G5: =D5+F5 -> 15144328.03 | H5: =[4]Reformatted!$G$85 -> 113 | I5: =H5*$I$3 -> 162383.2987 | J5: =[4]Reformatted!$O$85 -> 295 | K5: =J5*$K$3 -> 2543526.006 | L5: =[4]Reformatted!$AA$85 -> 100 | M5: =L5*$M$3 -> 1580722.377 | N5: =I5+K5+M5 -> 4286631.681 | O5: =G5+N5 -> 19430959.71 | P5: ='[5]October midyear adj'!$K$151 -> -3620795.287 | Q5: -854 | R5: =Q5*$R$3 -> 841243.176 | S5: =P5+R5 -> -2779552.111 | T5: ='[5]February midyear adj '!$K$117 -> -84796.14256 | U5: =S5+T5 -> -2864348.254 | V5: =O5+U5 -> 16566611.45 | W5: =-W65 -> 1831808.636 | X5: N/A | Y5: =W5 -> 1831808.636 | Z5: =V5+Y5 -> 18398420.09 | AA5: -603556.4491 | AB5: =Z5+AA5 -> 17794863.64 | AC5: ='[6]RSD-NO'!$FV$66+25362 -> 16070497 | AD5: =AB5-AC5 -> 1724366.641 | AE5: =AD5/2 -> 862183.3205 | AF5: =C5*$AF$3 -> 19523988 | AG5: 0 | AH5: =Q5 -> -854 | AI5: =AH5*$AF$3 -> -3583384 | AJ5: ='[7]February midyear adj '!$E$117 -> -40 | AK5: =AJ5*($AF$3*0.5) -> -83920 | AL5: =AI5+AK5 -> -3667304 | AM5: =AF5+AG5+AI5+AK5 -> 15856684 | AN5: =-AN65 -> 1865160.99 | AO5: N/A | AP5: =AN5 -> 1865160.99 | AQ5: =AM5+AP5 -> 17721844.99 | AR5: -167420 | AS5: =AQ5+AR5 -> 17554424.99 | AT5: ='[6]RSD-NO'!$FY$66 -> 14540249 | AU5: =AS5-AT5 -> 3014175.99 | AV5: =AU5/2 -> 1507087.995 | AX5: =AS5+AB5 -> 35349288.63 | AY5: =AV5+AE5 -> 2369271.316 | AZ5: =ROUND((AV5/$AV$66)*$AZ$1,0)+1 -> 422749 | BA5: =ROUND((AV5/$AV$66)*$BA$1,0)-1 -> 1084339 | BB5: =AV5-AZ5-BA5 -> -0.004999998957
B7: RSD Chartered
A8: 300001 | B8: New Beginnings, UNO (Capdau without Early College H.S.) | C8: ='[3]Table 5B1_RSD_Orleans'!C11 -> 340 | D8: =ROUND(C8*$D$3,0) -> 835615 | E8: ='[3]Table 5B1_RSD_Orleans'!F11 -> 767.7218472 | F8: =E8*C8 -> 261025.428 | G8: =D8+F8 -> 1096640.428 | H8: =[4]Reformatted!G8 -> 10 | I8: =H8*$I$3 -> 14370.20342 | J8: =[4]Reformatted!O8 -> 16 | K8: =J8*$K$3 -> 137953.9529 | L8: =[4]Reformatted!AA8 -> 1 | M8: =L8*$M$3 -> 15807.22377 | N8: =I8+K8+M8 -> 168131.3801 | O8: =G8+N8 -> 1264771.808 | P8: ='[5]October midyear adj'!K164 -> 256839.0683 | Q8: 61 | R8: =Q8*$R$3 -> -60088.79829 | S8: =P8+R8 -> 196750.27 | T8: ='[5]February midyear adj '!K130 -> -6315.714795 | U8: =S8+T8 -> 190434.5553 | V8: =O8+U8 -> 1455206.363 | W8: =-(V8*$W$3) -> -25466.11136 | X8: =-(V8*$X$3) -> -3638.015908 | Y8: =W8+X8 -> -29104.12727 | Z8: =V8+Y8 -> 1426102.236 | AA8: 3961.983985 | AB8: =Z8+AA8 -> 1430064.22 | AC8: ='[6]RSD-NO'!FV7+8454 -> 1146003 | AD8: =AB8-AC8 -> 284061.2201 | AE8: =AD8/2 -> 142030.61 | AF8: =C8*$AF$3 -> 1426640 | AG8: 0 | AH8: =Q8 -> 61 | AI8: =AH8*$AF$3 -> 255956 | AJ8: ='[7]February midyear adj '!E130 -> -3 | AK8: =AJ8*($AF$3*0.5) -> -6294 | AL8: =AI8+AK8 -> 249662 | AM8: =AF8+AG8+AI8+AK8 -> 1676302 | AN8: =-(AM8*$AN$3) -> -29335.285 | AO8: =-(AM8*$AO$3) -> -4190.755 | AP8: =AN8+AO8 -> -33526.04 | AQ8: =AM8+AP8 -> 1642775.96 | AR8: 4103 | AS8: =AQ8+AR8 -> 1646878.96 | AT8: ='[6]RSD-NO'!FY7 -> 1229025 | AU8: =AS8-AT8 -> 417853.96 | AV8: =AU8/2 -> 208926.98 | AX8: =AS8+AB8 -> 3076943.18 | AY8: =AV8+AE8 -> 350957.59 | AZ8: =ROUND((AV8/$AV$66)*$AZ$1,0) -> 58605 | BA8: =ROUND((AV8/$AV$66)*$BA$1,0) -> 150322 | BB8: =AV8-AZ8-BA8 -> -0.02000000002
A9: 300002 | B9: New Beginnings, UNO (Medard Nelson) | C9: ='[3]Table 5B1_RSD_Orleans'!C12 -> 420 | D9: =ROUND(C9*$D$3,0) -> 1032231 | E9: ='[3]Table 5B1_RSD_Orleans'!F12 -> 730.6695065 | F9: 306881.1927 | G9: 1339112.193 | H9: =[4]Reformatted!G9 -> 16 | I9: 22992.32548 | J9: =[4]Reformatted!O9 -> 24 | K9: 206930.9293 | L9: =[4]Reformatted!AA9 -> 3 | M9: 47421.6713 | N9: 277344.9261 | O9: 1616457.119 | P9: ='[5]October midyear adj'!K165 -> 179457.2401 | Q9: 43 | R9: -42357.67748 | S9: 137099.5627 | T9: ='[5]February midyear adj '!K131 -> -14606.98466 | U9: =S9+T9 -> 122492.578 | V9: =O9+U9 -> 1738949.697 | W9: =-(V9*$W$3) -> -30431.61969 | X9: =-(V9*$X$3) -> -4347.374242 | Y9: -34778.99394 | Z9: 1704170.703 | AA9: -6614.772182 | AB9: 1697555.931 | AC9: ='[6]RSD-NO'!FV8+8454 -> 1425020 | AD9: 272535.9307 | AE9: 136267.9654 | AF9: =C9*$AF$3 -> 1762320 | AG9: 0 | AH9: 43 | AI9: =AH9*$AF$3 -> 180428 | AJ9: ='[7]February midyear adj '!E131 -> -7 | AK9: -14686 | AL9: 165742 | AM9: 1928062 | AN9: =-(AM9*$AN$3) -> -33741.085 | AO9: =-(AM9*$AO$3) -> -4820.155 | AP9: =AN9+AO9 -> -38561.24 | AQ9: 1889500.76 | AR9: 0 | AS9: 1889500.76 | AT9: ='[6]RSD-NO'!FY8 -> 1448526 | AU9: 440974.76 | AV9: 220487.38 | AX9: 3587056.691 | AY9: 356755.3454 | AZ9: =ROUND((AV9/$AV$66)*$AZ$1,0) -> 61848 | BA9: =ROUND((AV9/$AV$66)*$BA$1,0) -> 158639 | BB9: =AV9-AZ9-BA9 -> 0.38
A10: 300003 | B10: New Beginnings, UNO (Thurgood Marshall Early College HS) | C10: ='[3]Table 5B1_RSD_Orleans'!C13 -> 601 | D10: =ROUND(C10*$D$3,0) -> 1477073 | E10: ='[3]Table 5B1_RSD_Orleans'!F13 -> 767.7218472 | F10: 461400.8301 | G10: 1938473.83 | H10: =[4]Reformatted!G10 -> 3 | I10: 4311.061027 | J10: =[4]Reformatted!O10 -> 36 | K10: 310396.394 | L10: =[4]Reformatted!AA10 -> 6 | M10: 94843.3426 | N10: 409550.7976 | O10: 2348024.628 | P10: ='[5]October midyear adj'!K166 -> 235786.6857 | Q10: 56 | R10: -55163.48695 | S10: 180623.1987 | T10: ='[5]February midyear adj '!K132 -> 2105.238265 | U10: 182728.437 | V10: 2530753.065 | W10: -44288.17863 | X10: -6326.882662 | Y10: -50615.06129 | Z10: 2480138.003 | AA10: -6614.772182 | AB10: 2473523.231 | AC10: ='[6]RSD-NO'!FV9+8454 -> 1988005 | AD10: 485518.2313 | AE10: 242759.1156 | AF10: =C10*$AF$3 -> 2521796 | AG10: 0 | AH10: 56 | AI10: 234976 | AJ10: ='[7]February midyear adj '!E132 -> 1 | AK10: 2098 | AL10: 237074 | AM10: 2758870 | AN10: =-(AM10*$AN$3) -> -48280.225 | AO10: -6897.175 | AP10: =AN10+AO10 -> -55177.4 | AQ10: 2703692.6 | AR10: 0 | AS10: 2703692.6 | AT10: ='[6]RSD-NO'!FY9 -> 2072728 | AU10: 630964.6 | AV10: 315482.3 | AX10: 5177215.831 | AY10: 558241.4156 | AZ10: =ROUND((AV10/$AV$66)*$AZ$1,0) -> 88495 | BA10: =ROUND((AV10/$AV$66)*$BA$1,0)-0.5 -> 226987.5 | BB10: -0.2
A11: 300004 | B11: New Beginnings, UNO Gentilly Terrace Charter School | C11: ='[3]Table 5B1_RSD_Orleans'!C14 -> 423 | D11: =ROUND(C11*$D$3,0) -> 1039604 | E11: ='[3]Table 5B1_RSD_Orleans'!F14 -> 746.0335616 | F11: 315572.1966 | G11: 1355176.197 | H11: =[4]Reformatted!G11 -> 7 | I11: 10059.1424 | J11: =[4]Reformatted!O11 -> 20 | K11: 172442.4411 | L11: =[4]Reformatted!AA11 -> 4 | M11: 63228.89507 | N11: 245730.4785 | O11: 1600906.675 | P11: ='[5]October midyear adj'!K167 -> 54454.24718 | Q11: 13 | R11: -12805.80947 | S11: 41648.43771 | T11: ='[5]February midyear adj '!K133 -> -50265.45893 | U11: -8617.021227 | V11: 1592289.654 | W11: -27865.06894 | X11: -3980.724135 | Y11: -31845.79308 | Z11: 1560443.861 | AA11: 2603.057459 | AB11: 1563046.918 | AC11: ='[6]RSD-NO'!FV10+8454 -> 1336143 | AD11: 226903.9183 | AE11: 113451.9591 | AF11: =C11*$AF$3 -> 1774908 | AG11: 0 | AH11: 13 | AI11: 54548 | AJ11: ='[7]February midyear adj '!E133 -> -24 | AK11: -50352 | AL11: 4196 | AM11: 1779104 | AN11: =-(AM11*$AN$3) -> -31134.32 | AO11: -4447.76 | AP11: =AN11+AO11 -> -35582.08 | AQ11: 1743521.92 | AR11: 6154.5 | AS11: 1749676.42 | AT11: ='[6]RSD-NO'!FY10 -> 1389338 | AU11: 360338.42 | AV11: 180169.21 | AX11: 3312723.338 | AY11: 293621.1691 | AZ11: =ROUND((AV11/$AV$66)*$AZ$1,0) -> 50539 | BA11: =ROUND((AV11/$AV$66)*$BA$1,0)-1 -> 129630 | BB11: 0.21
A12: 360001 | B12: Educators for Quality Alternatives (The NET Charter School) Not in a District Building | C12: ='[3]Table 5B1_RSD_Orleans'!C15 -> 140 | D12: =ROUND(C12*$D$3,0) -> 344077 | E12: ='[3]Table 5B1_RSD_Orleans'!F15 -> 746.0335616 | F12: 104444.6986 | G12: 448521.6986 | H12: =[4]Reformatted!G12 -> 1 | I12: 1437.020342 | J12: =[4]Reformatted!O12 -> 15 | K12: 129331.8308 | L12: =[4]Reformatted!AA12 -> 5 | M12: 79036.11883 | N12: 209804.97 | O12: 658326.6686 | P12: ='[5]October midyear adj'!K168 -> 41887.88245 | Q12: 10 | R12: -9850.62267 | S12: 32037.25978 | T12: ='[5]February midyear adj '!K134 -> 12566.36473 | U12: 44603.62451 | V12: 702930.2931 | W12: -12301.28013 | X12: -1757.325733 | Y12: =W12+X12 -> -14058.60586 | Z12: 688871.6873 | AA12: 0 | AB12: 688871.6873 | AC12: ='[6]RSD-NO'!FV11 -> 534572 | AD12: 154299.6873 | AE12: 77149.84363 | AF12: 0 | AG12: =C12*$AG$3 -> 683760 | AH12: 10 | AI12: =AH12*$AG$3 -> 48840 | AJ12: ='[7]February midyear adj '!E134 -> 6 | AK12: =AJ12*($AG$3*0.5) -> 14652 | AL12: 63492 | AM12: 747252 | AN12: =-(AM12*$AN$3) -> -13076.91 | AO12: -1868.13 | AP12: =AN12+AO12 -> -14945.04 | AQ12: 732306.96 | AR12: 0 | AS12: =AQ12+AR12 -> 732306.96 | AT12: ='[6]RSD-NO'!FY11 -> 562367 | AU12: 169939.96 | AV12: 84969.98 | AX12: 1421178.647 | AY12: 162119.8236 | AZ12: =ROUND((AV12/$AV$66)*$AZ$1,0) -> 23835 | BA12: 61135 | BB12: -0.02000000002
A13: 361001 | B13: Crescent Leadership Academy (Crescent Leadership Acad./Schwarz) Not in a District Building | C13: ='[3]Table 5B1_RSD_Orleans'!C16 -> 200 | D13: 491538 | E13: ='[3]Table 5B1_RSD_Orleans'!F16 -> 746.0335616 | F13: 149206.7123 | G13: 640744.7123 | H13: =[4]Reformatted!G13 -> 0 | I13: 0 | J13: =[4]Reformatted!O13 -> 10 | K13: 86221.22054 | L13: =[4]Reformatted!AA13 -> 2 | M13: 31614.44753 | N13: 117835.6681 | O13: 758580.3804 | P13: ='[5]October midyear adj'!K169 -> -171740.318 | Q13: -41 | R13: 40387.55295 | S13: -131352.7651 | T13: ='[5]February midyear adj '!K135 -> 8377.576489 | U13: -122975.1886 | V13: 635605.1918 | W13: -11123.09086 | X13: -1589.01298 | Y13: -12712.10384 | Z13: 622893.088 | AA13: 0 | AB13: 622893.088 | AC13: ='[6]RSD-NO'!FV12 -> 583406 | AD13: 39487.08798 | AE13: 19743.54399 | AF13: 0 | AG13: =C13*$AG$3 -> 976800 | AH13: -41 | AI13: =AH13*$AG$3 -> -200244 | AJ13: ='[7]February midyear adj '!E135 -> 4 | AK13: =AJ13*($AG$3*0.5) -> 9768 | AL13: -190476 | AM13: 786324 | AN13: =-(AM13*$AN$3) -> -13760.67 | AO13: =-(AM13*$AO$3) -> -1965.81 | AP13: -15726.48 | AQ13: 770597.52 | AR13: 0 | AS13: 770597.52 | AT13: ='[6]RSD-NO'!FY12 -> 675593 | AU13: 95004.52 | AV13: 47502.26 | AX13: 1393490.608 | AY13: 67245.80399 | AZ13: 13325 | BA13: =ROUND((AV13/$AV$66)*$BA$1,0)-1 -> 34177 | BB13: 0.26
A14: 362001 | B14: Future is Now (John McDonogh Senior H.S.) | C14: ='[3]Table 5B1_RSD_Orleans'!C17 -> 480 | D14: 1179692 | E14: ='[3]Table 5B1_RSD_Orleans'!F17 -> 746.0335616 | F14: 358096.1096 | G14: 1537788.11 | H14: =[4]Reformatted!G14 -> 2 | I14: 2874.040685 | J14: =[4]Reformatted!O14 -> 31 | K14: 267285.7837 | L14: =[4]Reformatted!AA14 -> 9 | M14: 142265.0139 | N14: 412424.8383 | O14: 1950212.948 | P14: ='[5]October midyear adj'!K170 -> -381179.7303 | Q14: -91 | R14: 89640.6663 | S14: -291539.064 | T14: ='[5]February midyear adj '!K136 -> -25132.72947 | U14: -316671.7934 | V14: 1633541.154 | W14: -28586.9702 | X14: -4083.852886 | Y14: -32670.82309 | Z14: 1600870.331 | AA14: 0 | AB14: 1600870.331 | AC14: ='[6]RSD-NO'!FV13 -> 1370340 | AD14: 230530.3313 | AE14: 115265.1657 | AF14: =C14*$AF$3 -> 2014080 | AG14: 0 | AH14: -91 | AI14: =AH14*$AF$3 -> -381836 | AJ14: ='[7]February midyear adj '!E136 -> -12 | AK14: =AJ14*($AF$3*0.5) -> -25176 | AL14: -407012 | AM14: 1607068 | AN14: -28123.69 | AO14: -4017.67 | AP14: -32141.36 | AQ14: 1574926.64 | AR14: 0 | AS14: 1574926.64 | AT14: ='[6]RSD-NO'!FY13 -> 1303262 | AU14: 271664.64 | AV14: 135832.32 | AX14: 3175796.971 | AY14: 251097.4857 | AZ14: 38102 | BA14: =ROUND((AV14/$AV$66)*$BA$1,0) -> 97730 | BB14: 0.3199999999
A15: 363001 | B15: Crescent City Schools, Inc. (Crescent City School)(Tubman) | C15: ='[3]Table 5B1_RSD_Orleans'!C18 -> 547 | D15: 1344358 | E15: ='[3]Table 5B1_RSD_Orleans'!F18 -> 746.0335616 | F15: 408080.3582 | G15: 1752438.358 | H15: =[4]Reformatted!G15 -> 15 | I15: 21555.30514 | J15: =[4]Reformatted!O15 -> 37 | K15: 319018.516 | L15: =[4]Reformatted!AA15 -> 8 | M15: 126457.7901 | N15: 467031.6113 | O15: 2219469.969 | P15: ='[5]October midyear adj'!K171 -> -113097.2826 | Q15: -27 | R15: 26596.68121 | S15: -86500.60139 | T15: ='[5]February midyear adj '!K137 -> 20943.94122 | U15: -65556.66017 | V15: 2153913.309 | W15: -37693.48291 | X15: -5384.783273 | Y15: -43078.26619 | Z15: 2110835.043 | AA15: -3998.060658 | AB15: 2106836.982 | AC15: ='[6]RSD-NO'!FV14 -> 1768326 | AD15: 338510.9825 | AE15: 169255.4912 | AF15: =C15*$AF$3 -> 2295212 | AG15: 0 | AH15: -27 | AI15: =AH15*$AF$3 -> -113292 | AJ15: ='[7]February midyear adj '!E137 -> 10 | AK15: 20980 | AL15: -92312 | AM15: 2202900 | AN15: -38550.75 | AO15: -5507.25 | AP15: -44058 | AQ15: 2158842 | AR15: -4203 | AS15: 2154639 | AT15: ='[6]RSD-NO'!FY14 -> 1725926 | AU15: 428713 | AV15: 214356.5 | AX15: 4261475.982 | AY15: 383611.9912 | AZ15: 60128 | BA15: =ROUND((AV15/$AV$66)*$BA$1,0)+0.5 -> 154228.5 | BB15: 0
A16: 364001 | B16: Comm. Leaders Adv. Student Suc (Fannie C. Williams) | C16: ='[3]Table 5B1_RSD_Orleans'!C19 -> 462 | D16: 1135454 | E16: ='[3]Table 5B1_RSD_Orleans'!F19 -> 746.0335616 | F16: 344667.5055 | G16: 1480121.505 | H16: =[4]Reformatted!G16 -> 19 | I16: 27303.38651 | J16: =[4]Reformatted!O16 -> 34 | K16: 293152.1498 | L16: =[4]Reformatted!AA16 -> 10 | M16: 158072.2377 | N16: 478527.774 | O16: 1958649.279 | P16: ='[5]October midyear adj'!K172 -> 209439.4122 | Q16: 50 | R16: -49253.11335 | S16: 160186.2989 | T16: ='[5]February midyear adj '!K138 -> 23038.33534 | U16: 183224.6342 | V16: 2141873.914 | W16: -37482.79349 | X16: -5354.684784 | Y16: -42837.47827 | Z16: 2099036.435 | AA16: 0 | AB16: 2099036.435 | AC16: ='[6]RSD-NO'!FV15 -> 1687384 | AD16: 411652.4354 | AE16: 205826.2177 | AF16: =C16*$AF$3 -> 1938552 | AG16: 0 | AH16: 50 | AI16: 209800 | AJ16: ='[7]February midyear adj '!E138 -> 11 | AK16: 23078 | AL16: 232878 | AM16: 2171430 | AN16: -38000.025 | AO16: -5428.575 | AP16: -43428.6 | AQ16: 2128001.4 | AR16: 0 | AS16: 2128001.4 | AT16: ='[6]RSD-NO'!FY15 -> 1616577 | AU16: 511424.4 | AV16: 255712.2 | AX16: 4227037.835 | AY16: 461538.4177 | AZ16: 71729 | BA16: =ROUND((AV16/$AV$66)*$BA$1,0) -> 183983 | BB16: 0.2
A17: 366001 | B17: Lagniappe Academies, Inc. (Lagniappe Academies) Not in a District Building | C17: ='[3]Table 5B1_RSD_Orleans'!C20 -> 103 | D17: =ROUND(C17*$D$3,0) -> 253142 | E17: ='[3]Table 5B1_RSD_Orleans'!F20 -> 746.0335616 | F17: 76841.45685 | G17: 329983.4568 | H17: =[4]Reformatted!G17 -> 3 | I17: 4311.061027 | J17: =[4]Reformatted!O17 -> 4 | K17: 34488.48822 | L17: =[4]Reformatted!AA17 -> 0 | M17: 0 | N17: 38799.54924 | O17: 368783.0061 | P17: ='[5]October midyear adj'!K173 -> 117286.0708 | Q17: 28 | R17: -27581.74348 | S17: 89704.32737 | T17: ='[5]February midyear adj '!K139 -> -20943.94122 | U17: 68760.38615 | V17: 437543.3922 | W17: -7657.009364 | X17: -1093.858481 | Y17: -8750.867845 | Z17: 428792.5244 | AA17: 0 | AB17: 428792.5244 | AC17: ='[6]RSD-NO'!FV16 -> 400885 | AD17: 27907.5244 | AE17: 13953.7622 | AF17: 0 | AG17: =C17*$AG$3 -> 503052 | AH17: 28 | AI17: =AH17*$AG$3 -> 136752 | AJ17: ='[7]February midyear adj '!E139 -> -10 | AK17: =AJ17*($AG$3*0.5) -> -24420 | AL17: 112332 | AM17: 615384 | AN17: -10769.22 | AO17: -1538.46 | AP17: =AN17+AO17 -> -12307.68 | AQ17: 603076.32 | AR17: 0 | AS17: 603076.32 | AT17: ='[6]RSD-NO'!FY16 -> 498522 | AU17: 104554.32 | AV17: 52277.16 | AX17: 1031868.844 | AY17: 66230.9222 | AZ17: =ROUND((AV17/$AV$66)*$AZ$1,0) -> 14664 | BA17: =ROUND((AV17/$AV$66)*$BA$1,0) -> 37613 | BB17: 0.16
A18: 367001 | B18: Spirit of Excellence Academy (Spirit of Exc. Academy)(Harney) | C18: ='[3]Table 5B1_RSD_Orleans'!C21 -> 364 | D18: 894600 | E18: ='[3]Table 5B1_RSD_Orleans'!F21 -> 746.0335616 | F18: 271556.2164 | G18: 1166156.216 | H18: =[4]Reformatted!G18 -> 16 | I18: 22992.32548 | J18: =[4]Reformatted!O18 -> 34 | K18: 293152.1498 | L18: =[4]Reformatted!AA18 -> 7 | M18: 110650.5664 | N18: 426795.0417 | O18: 1592951.258 | P18: ='[5]October midyear adj'!K174 -> 37699.0942 | Q18: 9 | R18: -8865.560403 | S18: 28833.5338 | T18: ='[5]February midyear adj '!K140 -> 41887.88245 | U18: 70721.41624 | V18: 1663672.674 | W18: -29114.2718 | X18: -4159.181686 | Y18: -33273.45349 | Z18: 1630399.221 | AA18: -3307.386091 | AB18: 1627091.835 | AC18: ='[6]RSD-NO'!FV17+8454 -> 1327532 | AD18: 299559.8348 | AE18: 149779.9174 | AF18: =C18*$AF$3 -> 1527344 | AG18: 0 | AH18: 9 | AI18: 37764 | AJ18: ='[7]February midyear adj '!E140 -> 20 | AK18: =AJ18*($AF$3*0.5) -> 41960 | AL18: 79724 | AM18: 1607068 | AN18: -28123.69 | AO18: -4017.67 | AP18: -32141.36 | AQ18: 1574926.64 | AR18: 0 | AS18: 1574926.64 | AT18: ='[6]RSD-NO'!FY17 -> 1226062 | AU18: 348864.64 | AV18: 174432.32 | AX18: 3202018.475 | AY18: 324212.2374 | AZ18: 48929 | BA18: =ROUND((AV18/$AV$66)*$BA$1,0) -> 125503 | BB18: 0.3199999999
A19: 368001 | B19: Morris Jeff. Community Sch, Inc. ** (Morris Jeff. Community School) | C19: ='[3]Table 5B1_RSD_Orleans'!C22 -> 200 | D19: 491538 | E19: ='[3]Table 5B1_RSD_Orleans'!F22 -> 746.0335616 | F19: 149206.7123 | G19: 640744.7123 | H19: =[4]Reformatted!G19 -> 9 | I19: 12933.18308 | J19: =[4]Reformatted!O19 -> 16 | K19: 137953.9529 | L19: =[4]Reformatted!AA19 -> 10 | M19: 158072.2377 | N19: 308959.3736 | O19: 949704.0859 | P19: ='[5]October midyear adj'!K175 -> 234572.1417 | Q19: 56 | R19: -55163.48695 | S19: 179408.6547 | T19: ='[5]February midyear adj '!K141 -> 12566.36473 | U19: 191975.0195 | V19: 1141679.105 | W19: -19979.38434 | X19: -2854.197764 | Y19: -22833.58211 | Z19: 1118845.523 | AA19: 99938.36385 | AB19: 1218783.887 | AC19: ='[6]RSD-NO'!FV18 -> 983401 | AD19: 235382.8872 | AE19: 117691.4436 | AF19: 839200 | AG19: 0 | AH19: 56 | AI19: 234976 | AJ19: ='[7]February midyear adj '!E141 -> 6 | AK19: 12588 | AL19: 247564 | AM19: 1086764 | AN19: -19018.37 | AO19: -2716.91 | AP19: -21735.28 | AQ19: 1065028.72 | AR19: 92468.5 | AS19: 1157497.22 | AT19: ='[6]RSD-NO'!FY18 -> 893386 | AU19: 264111.22 | AV19: 132055.61 | AX19: 2376281.107 | AY19: 249747.0536 | AZ19: 37042 | BA19: =ROUND((AV19/$AV$66)*$BA$1,0)+1 -> 95014 | BB19: -0.39
A20: 369001 | B20: ReNew Schools (Live Oak Elementary) | C20: ='[3]Table 5B1_RSD_Orleans'!C23 -> 581 | D20: 1427919 | E20: ='[3]Table 5B1_RSD_Orleans'!F23 -> 746.0335616 | F20: 433445.4993 | G20: 1861364.499 | H20: =[4]Reformatted!G20 -> 31 | I20: 44547.63061 | J20: =[4]Reformatted!O20 -> 67 | K20: 577682.1776 | L20: =[4]Reformatted!AA20 -> 17 | M20: 268722.804 | N20: 890952.6123 | O20: 2752317.112 | P20: ='[5]October midyear adj'!K176 -> 175929.1063 | Q20: 42 | R20: -41372.61521 | S20: 134556.4911 | T20: ='[5]February midyear adj '!K142 -> 58643.03542 | U20: 193199.5265 | V20: 2945516.638 | W20: -51546.54117 | X20: -7363.791595 | Y20: -58910.33276 | Z20: 2886606.305 | AA20: -7464.788019 | AB20: 2879141.517 | AC20: ='[6]RSD-NO'!FV19 -> 2297387 | AD20: 581754.5173 | AE20: 290877.2586 | AF20: 2437876 | AG20: 0 | AH20: 42 | AI20: 176232 | AJ20: ='[7]February midyear adj '!E142 -> 28 | AK20: 58744 | AL20: 234976 | AM20: 2672852 | AN20: -46774.91 | AO20: -6682.13 | AP20: -53457.04 | AQ20: 2619394.96 | AR20: -6554.5 | AS20: 2612840.46 | AT20: ='[6]RSD-NO'!FY19 -> 2000948 | AU20: 611892.46 | AV20: 305946.23 | AX20: 5491981.977 | AY20: 596823.4886 | AZ20: 85820 | BA20: =ROUND((AV20/$AV$66)*$BA$1,0) -> 220126 | BB20: 0.23
A21: 369002 | B21: ReNew Schools (Laurel Elementary) | C21: ='[3]Table 5B1_RSD_Orleans'!C24 -> 608 | D21: 1494277 | E21: ='[3]Table 5B1_RSD_Orleans'!F24 -> 746.0335616 | F21: 453588.4055 | G21: 1947865.405 | H21: =[4]Reformatted!G21 -> 31 | I21: 44547.63061 | J21: =[4]Reformatted!O21 -> 41 | K21: 353507.0042 | L21: =[4]Reformatted!AA21 -> 25 | M21: 395180.5942 | N21: 793235.229 | O21: 2741100.634 | P21: ='[5]October midyear adj'!K177 -> 201061.8357 | Q21: 48 | R21: -47282.98882 | S21: 153778.8469 | T21: ='[5]February midyear adj '!K143 -> -2094.394122 | U21: 151684.4528 | V21: 2892785.087 | W21: -50623.73903 | X21: -7231.962718 | Y21: -57855.70175 | Z21: 2834929.386 | AA21: -13507.62536 | AB21: 2821421.76 | AC21: ='[6]RSD-NO'!FV20+8454 -> 2354208 | AD21: 467213.7602 | AE21: 233606.8801 | AF21: 2551168 | AG21: 0 | AH21: 48 | AI21: 201408 | AJ21: ='[7]February midyear adj '!E143 -> -1 | AK21: -2098 | AL21: 199310 | AM21: 2750478 | AN21: -48133.365 | AO21: -6876.195 | AP21: -55009.56 | AQ21: 2695468.44 | AR21: -4203 | AS21: 2691265.44 | AT21: ='[6]RSD-NO'!FY20 -> 2131528 | AU21: 559737.44 | AV21: 279868.72 | AX21: 5512687.2 | AY21: 513475.6001 | AZ21: 78505 | BA21: =ROUND((AV21/$AV$66)*$BA$1,0) -> 201364 | BB21: -0.28
A22: 369003 | B22: ReNew Schools* (K-8 Charter School/Sarah Reed) | C22: ='[3]Table 5B1_RSD_Orleans'!C25 -> 581 | D22: 1427919 | E22: ='[3]Table 5B1_RSD_Orleans'!F25 -> 746.0335616 | F22: 433445.4993 | G22: 1861364.499 | H22: =[4]Reformatted!G22 -> 20 | I22: 28740.40685 | J22: =[4]Reformatted!O22 -> 42 | K22: 362129.1263 | L22: =[4]Reformatted!AA22 -> 9 | M22: 142265.0139 | N22: 533134.547 | O22: 2394499.046 | P22: ='[5]October midyear adj'!K178 -> 205250.624 | Q22: 49 | R22: -48268.05108 | S22: 156982.5729 | T22: ='[5]February midyear adj '!K144 -> 18849.5471 | U22: 175832.12 | V22: 2570331.166 | W22: -44980.79541 | X22: -6425.827916 | Y22: -51406.62333 | Z22: 2518924.543 | AA22: 0 | AB22: 2518924.543 | AC22: ='[6]RSD-NO'!FV21 -> 2104492 | AD22: 414432.543 | AE22: 207216.2715 | AF22: 2437876 | AG22: 0 | AH22: 49 | AI22: 205604 | AJ22: ='[7]February midyear adj '!E144 -> 9 | AK22: 18882 | AL22: 224486 | AM22: 2662362 | AN22: -46591.335 | AO22: -6655.905 | AP22: -53247.24 | AQ22: 2609114.76 | AR22: 0 | AS22: 2609114.76 | AT22: ='[6]RSD-NO'!FY21 -> 2051468 | AU22: 557646.76 | AV22: 278823.38 | AX22: 5128039.303 | AY22: 486039.6515 | AZ22: 78212 | BA22: =ROUND((AV22/$AV$66)*$BA$1,0)-1 -> 200611 | BB22: 0.3799999999
A23: 369004 | B23: ReNew Schools* (ReNew Accel. H.S., City Park) | C23: ='[3]Table 5B1_RSD_Orleans'!C26 -> 157 | D23: 385858 | E23: ='[3]Table 5B1_RSD_Orleans'!F26 -> 746.0335616 | F23: 117127.2692 | G23: 502985.2692 | H23: =[4]Reformatted!G23 -> 3 | I23: 4311.061027 | J23: =[4]Reformatted!O23 -> 11 | K23: 94843.3426 | L23: =[4]Reformatted!AA23 -> 4 | M23: 63228.89507 | N23: 162383.2987 | O23: 665368.5679 | P23: ='[5]October midyear adj'!K179 -> 142418.8003 | Q23: 34 | R23: -33492.11708 | S23: 108926.6832 | T23: ='[5]February midyear adj '!K145 -> -6283.182367 | U23: 102643.5009 | V23: 768012.0687 | W23: -13440.2112 | X23: -1920.030172 | Y23: -15360.24137 | Z23: 752651.8274 | AA23: -19990.30329 | AB23: 732661.5241 | AC23: ='[6]RSD-NO'!FV22 -> 562896 | AD23: 169765.5241 | AE23: 84882.76204 | AF23: 658772 | AG23: 0 | AH23: 34 | AI23: 142664 | AJ23: ='[7]February midyear adj '!E145 -> -3 | AK23: -6294 | AL23: 136370 | AM23: 795142 | AN23: -13914.985 | AO23: -1987.855 | AP23: -15902.84 | AQ23: 779239.16 | AR23: -21015 | AS23: 758224.16 | AT23: ='[6]RSD-NO'!FY22 -> 558104 | AU23: 200120.16 | AV23: 100060.08 | AX23: 1490885.684 | AY23: 184942.842 | AZ23: 28067 | BA23: =ROUND((AV23/$AV$66)*$BA$1,0) -> 71993 | BB23: 0.08000000002
A24: 369005 | B24: ReNew Schools* (ReNew Accel. H.S., West Bank) | C24: ='[3]Table 5B1_RSD_Orleans'!C27 -> 139 | D24: 341619 | E24: ='[3]Table 5B1_RSD_Orleans'!F27 -> 746.0335616 | F24: 103698.6651 | G24: 445317.6651 | H24: =[4]Reformatted!G24 -> 1 | I24: 1437.020342 | J24: =[4]Reformatted!O24 -> 16 | K24: 137953.9529 | L24: =[4]Reformatted!AA24 -> 4 | M24: 63228.89507 | N24: 202619.8683 | O24: 647937.5333 | P24: ='[5]October midyear adj'!K180 -> 163362.7415 | Q24: 39 | R24: -38417.42841 | S24: 124945.3131 | T24: ='[5]February midyear adj '!K146 -> 4188.788245 | U24: 129134.1014 | V24: 777071.6347 | W24: -13598.75361 | X24: -1942.679087 | Y24: -15541.43269 | Z24: 761530.202 | AA24: 0 | AB24: 761530.202 | AC24: ='[6]RSD-NO'!FV23 -> 574254 | AD24: 187276.202 | AE24: 93638.10101 | AF24: 583244 | AG24: 0 | AH24: 39 | AI24: 163644 | AJ24: ='[7]February midyear adj '!E146 -> 2 | AK24: 4196 | AL24: 167840 | AM24: 751084 | AN24: -13143.97 | AO24: -1877.71 | AP24: -15021.68 | AQ24: 736062.32 | AR24: 0 | AS24: 736062.32 | AT24: ='[6]RSD-NO'!FY23 -> 531234 | AU24: 204828.32 | AV24: 102414.16 | AX24: 1497592.522 | AY24: 196052.261 | AZ24: 28728 | BA24: =ROUND((AV24/$AV$66)*$BA$1,0) -> 73686 | BB24: 0.16
A25: 373001 | B25: Arise Academy (Arise Academy) | C25: ='[3]Table 5B1_RSD_Orleans'!C28 -> 310 | D25: 761885 | E25: ='[3]Table 5B1_RSD_Orleans'!F28 -> 746.0335616 | F25: 231270.4041 | G25: 993155.4041 | H25: =[4]Reformatted!G25 -> 19 | I25: 27303.38651 | J25: =[4]Reformatted!O25 -> 43 | K25: 370751.2483 | L25: =[4]Reformatted!AA25 -> 3 | M25: 47421.6713 | N25: 445476.3061 | O25: 1438631.71 | P25: ='[5]October midyear adj'!K181 -> 322536.6948 | Q25: 77 | R25: -75849.79456 | S25: 246686.9003 | T25: ='[5]February midyear adj '!K147 -> 25132.72947 | U25: 271819.6297 | V25: 1710451.34 | W25: -29932.89845 | X25: -4276.12835 | Y25: -34209.0268 | Z25: 1676242.313 | AA25: 0 | AB25: 1676242.313 | AC25: ='[6]RSD-NO'!FV24+8454 -> 1380304 | AD25: 295938.3132 | AE25: 147969.1566 | AF25: 1300760 | AG25: 0 | AH25: 77 | AI25: 323092 | AJ25: ='[7]February midyear adj '!E147 -> 12 | AK25: 25176 | AL25: 348268 | AM25: 1649028 | AN25: -28857.99 | AO25: -4122.57 | AP25: -32980.56 | AQ25: 1616047.44 | AR25: 0 | AS25: 1616047.44 | AT25: ='[6]RSD-NO'!FY24 -> 1262962 | AU25: 353085.44 | AV25: 176542.72 | AX25: 3292289.753 | AY25: 324511.8766 | AZ25: 49521 | BA25: =ROUND((AV25/$AV$66)*$BA$1,0)+1 -> 127022 | BB25: -0.28
A26: 374001 | B26: Success Preparatory Academy (Success Prep) | C26: ='[3]Table 5B1_RSD_Orleans'!C29 -> 383 | D26: 941296 | E26: ='[3]Table 5B1_RSD_Orleans'!F29 -> 746.0335616 | F26: 285730.8541 | G26: 1227026.854 | H26: =[4]Reformatted!G26 -> 7 | I26: 10059.1424 | J26: =[4]Reformatted!O26 -> 36 | K26: 310396.394 | L26: =[4]Reformatted!AA26 -> 4 | M26: 63228.89507 | N26: 383684.4314 | O26: 1610711.286 | P26: ='[5]October midyear adj'!K182 -> 113097.2826 | Q26: 27 | R26: -26596.68121 | S26: 86500.60139 | T26: ='[5]February midyear adj '!K148 -> -16755.15298 | U26: 69745.44841 | V26: 1680456.734 | W26: -29407.99284 | X26: -4201.141835 | Y26: -33609.13468 | Z26: 1646847.599 | AA26: -1557.554276 | AB26: 1645290.045 | AC26: ='[6]RSD-NO'!FV25+8454 -> 1391089 | AD26: 254201.045 | AE26: 127100.5225 | AF26: 1607068 | AG26: 0 | AH26: 27 | AI26: 113292 | AJ26: ='[7]February midyear adj '!E148 -> -8 | AK26: -16784 | AL26: 96508 | AM26: 1703576 | AN26: -29812.58 | AO26: -4258.94 | AP26: -34071.52 | AQ26: 1669504.48 | AR26: -2051.5 | AS26: 1667452.98 | AT26: ='[6]RSD-NO'!FY25 -> 1335226 | AU26: 332226.98 | AV26: 166113.49 | AX26: 3312743.025 | AY26: 293214.0125 | AZ26: 46596 | BA26: =ROUND((AV26/$AV$66)*$BA$1,0)-1 -> 119517 | BB26: 0.49
A27: 375001 | B27: Benjamin E. Mays Schools (Benjamin Mays Prep) | C27: ='[3]Table 5B1_RSD_Orleans'!C30 -> 304 | D27: 747138 | E27: ='[3]Table 5B1_RSD_Orleans'!F30 -> 746.0335616 | F27: 226794.2027 | G27: 973932.2027 | H27: =[4]Reformatted!G27+[4]Reformatted!G28 -> 24 | I27: 34488.48822 | J27: =[4]Reformatted!O27+[4]Reformatted!O28 -> 11 | K27: 94843.3426 | L27: =[4]Reformatted!AA27+[4]Reformatted!$AA$28 -> 1 | M27: 15807.22377 | N27: 145139.0546 | O27: 1119071.257 | P27: ='[5]October midyear adj'!K183 -> 150796.3768 | Q27: 36 | R27: -35462.24161 | S27: 115334.1352 | T27: ='[5]February midyear adj '!K149 -> 12566.36473 | U27: 127900.4999 | V27: 1246971.757 | W27: -21822.00575 | X27: -3117.429393 | Y27: -24939.43514 | Z27: 1222032.322 | AA27: -6188.225006 | AB27: 1215844.097 | AC27: ='[6]RSD-NO'!FV26 -> 1005238 | AD27: 210606.0971 | AE27: 105303.0485 | AF27: 1275584 | AG27: 0 | AH27: 36 | AI27: 151056 | AJ27: ='[7]February midyear adj '!E149 -> 6 | AK27: 12588 | AL27: 163644 | AM27: 1439228 | AN27: -25186.49 | AO27: -3598.07 | AP27: -28784.56 | AQ27: 1410443.44 | AR27: -2051.5 | AS27: 1408391.94 | AT27: ='[6]RSD-NO'!FY26 -> 1066788 | AU27: 341603.94 | AV27: 170801.97 | AX27: 2624236.037 | AY27: 276105.0185 | AZ27: 47911 | BA27: =ROUND((AV27/$AV$66)*$BA$1,0) -> 122891 | BB27: -0.03000000003
A28: 376001 | B28: Pride College Prep Academy (Pride College Prep) | C28: ='[3]Table 5B1_RSD_Orleans'!C31 -> 253 | D28: 621796 | E28: ='[3]Table 5B1_RSD_Orleans'!F31 -> 746.0335616 | F28: 188746.4911 | G28: 810542.4911 | H28: =[4]Reformatted!G29 -> 13 | I28: 18681.26445 | J28: =[4]Reformatted!O29 -> 12 | K28: 103465.4647 | L28: =[4]Reformatted!AA29 -> 3 | M28: 47421.6713 | N28: 169568.4004 | O28: 980110.8915 | P28: ='[5]October midyear adj'!K184 -> 293215.1771 | Q28: 70 | R28: -68954.35869 | S28: 224260.8184 | T28: ='[5]February midyear adj '!K150 -> -12566.36473 | U28: 211694.4537 | V28: 1191805.345 | W28: -20856.59354 | X28: -2979.513363 | Y28: -23836.1069 | Z28: 1167969.238 | AA28: 0 | AB28: 1167969.238 | AC28: ='[6]RSD-NO'!FV27 -> 1052052 | AD28: 115917.2383 | AE28: 57958.61914 | AF28: 1061588 | AG28: 0 | AH28: 70 | AI28: 293720 | AJ28: ='[7]February midyear adj '!E150 -> -6 | AK28: -12588 | AL28: 281132 | AM28: 1342720 | AN28: -23497.6 | AO28: -3356.8 | AP28: -26854.4 | AQ28: 1315865.6 | AR28: 0 | AS28: 1315865.6 | AT28: ='[6]RSD-NO'!FY27 -> 1045748 | AU28: 270117.6 | AV28: 135058.8 | AX28: 2483834.838 | AY28: 193017.4191 | AZ28: 37885 | BA28: =ROUND((AV28/$AV$66)*$BA$1,0) -> 97174 | BB28: -0.2
A29: 379001 | B29: Advocates for Arts and Tech. (Crocker Arts) | C29: ='[3]Table 5B1_RSD_Orleans'!C32 -> 210 | D29: 516115 | E29: ='[3]Table 5B1_RSD_Orleans'!F32 -> 926.662963 | F29: 194599.2222 | G29: 710714.2222 | H29: =[4]Reformatted!G30 -> 7 | I29: 10059.1424 | J29: =[4]Reformatted!O30 -> 7 | K29: 60354.85438 | L29: =[4]Reformatted!AA30 -> 3 | M29: 47421.6713 | N29: 117835.6681 | O29: 828549.8903 | P29: ='[5]October midyear adj'!K185 -> 139821.3647 | Q29: 32 | R29: -31521.99254 | S29: 108299.3721 | T29: ='[5]February midyear adj '!K151 -> 24031.79705 | U29: 132331.1692 | V29: 960881.0595 | W29: -16815.41854 | X29: -2402.202649 | Y29: -19217.62119 | Z29: 941663.4383 | AA29: -57.76495774 | AB29: 941605.6733 | AC29: ='[6]RSD-NO'!FV28 -> 756818 | AD29: 184787.6733 | AE29: 92393.83666 | AF29: 881160 | AG29: 0 | AH29: 32 | AI29: 134272 | AJ29: ='[7]February midyear adj '!E151 -> 11 | AK29: 23078 | AL29: 157350 | AM29: 1038510 | AN29: -18173.925 | AO29: -2596.275 | AP29: -20770.2 | AQ29: 1017739.8 | AR29: -100 | AS29: 1017639.8 | AT29: ='[6]RSD-NO'!FY28 -> 758352 | AU29: 259287.8 | AV29: 129643.9 | AX29: 1959245.473 | AY29: 222037.7367 | AZ29: 36366 | BA29: =ROUND((AV29/$AV$66)*$BA$1,0) -> 93278 | BB29: -0.09999999998
A30: 380001 | B30: Intercultural Charter School Brd. (Intercultural Charter) | C30: ='[3]Table 5B1_RSD_Orleans'!C33 -> 419 | D30: 1029773 | E30: ='[3]Table 5B1_RSD_Orleans'!F33 -> 744.7779817 | F30: 312061.9743 | G30: 1341834.974 | H30: =[4]Reformatted!G31 -> 12 | I30: 17244.24411 | J30: =[4]Reformatted!O31 -> 25 | K30: 215553.0514 | L30: =[4]Reformatted!AA31 -> 3 | M30: 47421.6713 | N30: 280218.9668 | O30: 1622053.941 | P30: ='[5]October midyear adj'!K186 -> -142376.1106 | Q30: -34 | R30: 33492.11708 | S30: -108883.9935 | T30: ='[5]February midyear adj '!K152 -> -2093.766332 | U30: -110977.7598 | V30: 1511076.181 | W30: -26443.83317 | X30: -3777.690453 | Y30: =W30+X30 -> -30221.52362 | Z30: 1480854.658 | AA30: 0 | AB30: =Z30+AA30 -> 1480854.658 | AC30: ='[6]RSD-NO'!FV29 -> 1297686 | AD30: 183168.6576 | AE30: 91584.3288 | AF30: 1758124 | AG30: 0 | AH30: -34 | AI30: -142664 | AJ30: ='[7]February midyear adj '!E152 -> -1 | AK30: -2098 | AL30: -144762 | AM30: 1613362 | AN30: -28233.835 | AO30: -4033.405 | AP30: =AN30+AO30 -> -32267.24 | AQ30: 1581094.76 | AR30: 0 | AS30: =AQ30+AR30 -> 1581094.76 | AT30: ='[6]RSD-NO'!FY29 -> 1302793 | AU30: 278301.76 | AV30: 139150.88 | AX30: 3061949.418 | AY30: 230735.2088 | AZ30: =ROUND((AV30/$AV$66)*$AZ$1,0) -> 39033 | BA30: =ROUND((AV30/$AV$66)*$BA$1,0) -> 100118 | BB30: -0.12
A31: 381001 | B31: Crescent City Schools, Inc. (Akili Academy) | C31: ='[3]Table 5B1_RSD_Orleans'!C34 -> 308 | D31: 756969 | E31: ='[3]Table 5B1_RSD_Orleans'!F34 -> 743.6568966 | F31: 229046.3241 | G31: 986015.3241 | H31: =[4]Reformatted!G32 -> 15 | I31: 21555.30514 | J31: =[4]Reformatted!O32 -> 29 | K31: 250041.5396 | L31: =[4]Reformatted!AA32 -> 8 | M31: 126457.7901 | N31: 398054.6348 | O31: 1384069.959 | P31: ='[5]October midyear adj'!K187 -> 322353.6916 | Q31: 77 | R31: -75849.79456 | S31: 246503.8971 | T31: ='[5]February midyear adj '!K153 -> -8372.823159 | U31: 238131.0739 | V31: 1622201.033 | W31: -28388.51808 | X31: -4055.502582 | Y31: -32444.02066 | Z31: 1589757.012 | AA31: 0 | AB31: 1589757.012 | AC31: ='[6]RSD-NO'!FV30 -> 1328667 | AD31: 261090.0122 | AE31: 130545.0061 | AF31: 1292368 | AG31: 0 | AH31: 77 | AI31: 323092 | AJ31: ='[7]February midyear adj '!E153 -> -4 | AK31: -8392 | AL31: 314700 | AM31: 1607068 | AN31: -28123.69 | AO31: -4017.67 | AP31: -32141.36 | AQ31: 1574926.64 | AR31: 0 | AS31: 1574926.64 | AT31: ='[6]RSD-NO'!FY30 -> 1255966 | AU31: 318960.64 | AV31: 159480.32 | AX31: 3164683.652 | AY31: 290025.3261 | AZ31: 44735 | BA31: =ROUND((AV31/$AV$66)*$BA$1,0) -> 114745 | BB31: 0.3199999999
A32: 382001 | B32: Advocates for Science & Math (Sci Academy) | C32: ='[3]Table 5B1_RSD_Orleans'!C35 -> 336 | D32: 825785 | E32: ='[3]Table 5B1_RSD_Orleans'!F35 -> 783.5493976 | F32: 263272.5976 | G32: 1089057.598 | H32: =[4]Reformatted!G33 -> 2 | I32: 2874.040685 | J32: =[4]Reformatted!O33 -> 48 | K32: 413861.8586 | L32: =[4]Reformatted!AA33 -> 21 | M32: 331951.6991 | N32: 748687.5984 | O32: 1837745.196 | P32: ='[5]October midyear adj'!K188 -> 131015.4265 | Q32: 31 | R32: -30536.93028 | S32: 100478.4962 | T32: ='[5]February midyear adj '!K154 -> 71847.16937 | U32: 172325.6656 | V32: 2010070.862 | W32: -35176.24008 | X32: -5025.177154 | Y32: -40201.41723 | Z32: 1969869.444 | AA32: -1017.172158 | AB32: 1968852.272 | AC32: ='[6]RSD-NO'!FV31 -> 1536187 | AD32: 432665.2722 | AE32: 216332.6361 | AF32: 1409856 | AG32: 0 | AH32: 31 | AI32: 130076 | AJ32: ='[7]February midyear adj '!E154 -> 34 | AK32: 71332 | AL32: 201408 | AM32: 1611264 | AN32: -28197.12 | AO32: -4028.16 | AP32: -32225.28 | AQ32: 1579038.72 | AR32: -4103 | AS32: 1574935.72 | AT32: ='[6]RSD-NO'!FY31 -> 1247245 | AU32: 327690.72 | AV32: 163845.36 | AX32: 3543787.992 | AY32: 380177.9961 | AZ32: =ROUND((AV32/$AV$66)*$AZ$1,0) -> 45960 | BA32: =ROUND((AV32/$AV$66)*$BA$1,0)-1 -> 117885 | BB32: 0.36
A33: 382002 | B33: Collegiate Academies (G.W. Carver Collegiate Academy) | C33: ='[3]Table 5B1_RSD_Orleans'!C36 -> 120 | D33: 294923 | E33: ='[3]Table 5B1_RSD_Orleans'!F36 -> 746.0335616 | F33: 89524.0274 | G33: 384447.0274 | H33: =[4]Reformatted!G34 -> 1 | I33: 1437.020342 | J33: =[4]Reformatted!O34 -> 13 | K33: 112087.5867 | L33: =[4]Reformatted!AA34 -> 2 | M33: 31614.44753 | N33: 145139.0546 | O33: 529586.082 | P33: ='[5]October midyear adj'!K189 -> -71209.40016 | Q33: -17 | R33: 16746.05854 | S33: -54463.34162 | T33: ='[5]February midyear adj '!K155 -> 4188.788245 | U33: -50274.55337 | V33: 479311.5286 | W33: -8387.951751 | X33: -1198.278822 | Y33: -9586.230572 | Z33: 469725.298 | AA33: 0 | AB33: 469725.298 | AC33: ='[6]RSD-NO'!FV32 -> 382158 | AD33: 87567.29803 | AE33: 43783.64902 | AF33: 503520 | AG33: 0 | AH33: -17 | AI33: -71332 | AJ33: ='[7]February midyear adj '!E155 -> 2 | AK33: 4196 | AL33: -67136 | AM33: 436384 | AN33: -7636.72 | AO33: -1090.96 | AP33: -8727.68 | AQ33: 427656.32 | AR33: 0 | AS33: 427656.32 | AT33: ='[6]RSD-NO'!FY32 -> 346661 | AU33: 80995.32 | AV33: 40497.66 | AX33: 897381.618 | AY33: 84281.30902 | AZ33: 11360 | BA33: =ROUND((AV33/$AV$66)*$BA$1,0) -> 29138 | BB33: -0.34
A34: 382003 | B34: Collegiate Academies (G.W. Carver Preparatory Academy) | C34: ='[3]Table 5B1_RSD_Orleans'!C37 -> 120 | D34: 294923 | E34: ='[3]Table 5B1_RSD_Orleans'!F37 -> 746.0335616 | F34: 89524.0274 | G34: 384447.0274 | H34: =[4]Reformatted!G35 -> 1 | I34: 1437.020342 | J34: =[4]Reformatted!O35 -> 9 | K34: 77599.09849 | L34: =[4]Reformatted!AA35 -> 2 | M34: 31614.44753 | N34: 110650.5664 | O34: 495097.5938 | P34: ='[5]October midyear adj'!K190 -> -41887.88245 | Q34: -10 | R34: 9850.62267 | S34: -32037.25978 | T34: ='[5]February midyear adj '!K156 -> -20943.94122 | U34: -52981.201 | V34: 442116.3928 | W34: -7737.036873 | X34: -1105.290982 | Y34: =W34+X34 -> -8842.327855 | Z34: 433274.0649 | AA34: 0 | AB34: =Z34+AA34 -> 433274.0649 | AC34: ='[6]RSD-NO'!FV33 -> 379666 | AD34: 53608.06491 | AE34: 26804.03245 | AF34: 503520 | AG34: 0 | AH34: -10 | AI34: -41960 | AJ34: ='[7]February midyear adj '!E156 -> -10 | AK34: -20980 | AL34: -62940 | AM34: 440580 | AN34: -7710.15 | AO34: -1101.45 | AP34: =AN34+AO34 -> -8811.6 | AQ34: 431768.4 | AR34: 0 | AS34: =AQ34+AR34 -> 431768.4 | AT34: ='[6]RSD-NO'!FY33 -> 363259 | AU34: 68509.4 | AV34: 34254.7 | AX34: 865042.4649 | AY34: 61058.73245 | AZ34: 9609 | BA34: 24646 | BB34: -0.3
A35: 384001 | B35: Miller-McCoy Academy (Miller-McCoy Academy) | C35: ='[3]Table 5B1_RSD_Orleans'!C38 -> 526 | D35: 1292746 | E35: ='[3]Table 5B1_RSD_Orleans'!F38 -> 735.822449 | F35: 387042.6082 | G35: 1679788.608 | H35: =[4]Reformatted!G36 -> 7 | I35: 10059.1424 | J35: =[4]Reformatted!O36 -> 47 | K35: 405239.7366 | L35: =[4]Reformatted!AA36 -> 10 | M35: 158072.2377 | N35: 573371.1166 | O35: 2253159.725 | P35: ='[5]October midyear adj'!K191 -> -580822.2213 | Q35: -139 | R35: 136923.6551 | S35: -443898.5662 | T35: ='[5]February midyear adj '!K157 -> 27160.75136 | U35: -416737.8149 | V35: 1836421.91 | W35: -32137.38342 | X35: -4591.054775 | Y35: -36728.4382 | Z35: 1799693.472 | AA35: -5771.358096 | AB35: 1793922.114 | AC35: ='[6]RSD-NO'!FV34+8454 -> 1529381 | AD35: 264541.1136 | AE35: 132270.5568 | AF35: 2207096 | AG35: 0 | AH35: -139 | AI35: -583244 | AJ35: ='[7]February midyear adj '!E157 -> 13 | AK35: 27274 | AL35: -555970 | AM35: 1651126 | AN35: -28894.705 | AO35: -4127.815 | AP35: -33022.52 | AQ35: 1618103.48 | AR35: -6654.5 | AS35: 1611448.98 | AT35: ='[6]RSD-NO'!FY34 -> 1338261 | AU35: 273187.98 | AV35: 136593.99 | AX35: 3405371.094 | AY35: 268864.5468 | AZ35: 38315 | BA35: 98279 | BB35: -0.01000000001
A36: 385001 | B36: N.O. College Prep Academies (N. O. College Prep /S. Williams) | C36: ='[3]Table 5B1_RSD_Orleans'!C39 -> 420 | D36: 1032231 | E36: ='[3]Table 5B1_RSD_Orleans'!F39 -> 618.7565116 | F36: 259877.7349 | G36: 1292108.735 | H36: =[4]Reformatted!G37 -> 11 | I36: 15807.22377 | J36: =[4]Reformatted!O37 -> 27 | K36: 232797.2955 | L36: =[4]Reformatted!AA37 -> 4 | M36: 63228.89507 | N36: 311833.4143 | O36: 1603942.149 | P36: ='[5]October midyear adj'!K192 -> -251813.6941 | Q36: -62 | R36: 61073.86056 | S36: -190739.8335 | T36: ='[5]February midyear adj '!K158 -> -12184.53358 | U36: -202924.3671 | V36: 1401017.782 | W36: -24517.81119 | X36: -3502.544455 | Y36: -28020.35564 | Z36: 1372997.426 | AA36: -9602.603684 | AB36: 1363394.823 | AC36: ='[6]RSD-NO'!FV35+8454 -> 1218069 | AD36: 145325.8228 | AE36: 72662.91138 | AF36: 1762320 | AG36: 0 | AH36: -62 | AI36: -260152 | AJ36: ='[7]February midyear adj '!E158 -> -6 | AK36: -12588 | AL36: -272740 | AM36: 1489580 | AN36: -26067.65 | AO36: -3723.95 | AP36: -29791.6 | AQ36: 1459788.4 | AR36: -4103 | AS36: 1455685.4 | AT36: ='[6]RSD-NO'!FY35 -> 1190409 | AU36: 265276.4 | AV36: 132638.2 | AX36: 2819080.223 | AY36: 205301.1114 | AZ36: 37206 | BA36: 95432 | BB36: 0.2
A37: 385002 | B37: N. O. College Prep (Cohen College Prep) | C37: ='[3]Table 5B1_RSD_Orleans'!C40 -> 570 | D37: 1400885 | E37: ='[3]Table 5B1_RSD_Orleans'!F40 -> 746.0335616 | F37: 425239.1301 | G37: 1826124.13 | H37: =[4]Reformatted!G38 -> 5 | I37: 7185.101712 | J37: =[4]Reformatted!O38 -> 52 | K37: 448350.3468 | L37: =[4]Reformatted!AA38 -> 11 | M37: 173879.4614 | N37: 629414.91 | O37: 2455539.04 | P37: ='[5]October midyear adj'!K193 -> -284837.6006 | Q37: -68 | R37: 66984.23416 | S37: -217853.3665 | T37: ='[5]February midyear adj '!K159 -> -18849.5471 | U37: -236702.9136 | V37: 2218836.127 | W37: -38829.63221 | X37: -5547.090316 | Y37: -44376.72253 | Z37: 2174459.404 | AA37: 0 | AB37: 2174459.404 | AC37: ='[6]RSD-NO'!FV36 -> 1799328 | AD37: 375131.404 | AE37: 187565.702 | AF37: 2391720 | AG37: 0 | AH37: -68 | AI37: -285328 | AJ37: ='[7]February midyear adj '!E159 -> -9 | AK37: -18882 | AL37: -304210 | AM37: 2087510 | AN37: -36531.425 | AO37: -5218.775 | AP37: -41750.2 | AQ37: 2045759.8 | AR37: 0 | AS37: 2045759.8 | AT37: ='[6]RSD-NO'!FY36 -> 1664383 | AU37: 381376.8 | AV37: 190688.4 | AX37: 4220219.204 | AY37: 378254.102 | AZ37: 53489 | BA37: 137199 | BB37: 0.4
A38: 388001 | B38: Broadmoor Charter (Andrew H. Wilson/Mc #7) | C38: ='[3]Table 5B1_RSD_Orleans'!C41 -> 548 | D38: 1346815 | E38: ='[3]Table 5B1_RSD_Orleans'!F41 -> 708.2132752 | F38: 388100.8748 | G38: 1734915.875 | H38: =[4]Reformatted!G39 -> 18 | I38: 25866.36616 | J38: =[4]Reformatted!O39 -> 53 | K38: 456972.4689 | L38: =[4]Reformatted!AA39 -> 7 | M38: 110650.5664 | N38: 593489.4014 | O38: 2328405.276 | P38: ='[5]October midyear adj'!K194 -> 199246.462 | Q38: 48 | R38: -47282.98882 | S38: 151963.4732 | T38: ='[5]February midyear adj '!K160 -> 24905.80775 | U38: 176869.2809 | V38: 2505274.557 | W38: -43842.30475 | X38: -6263.186393 | Y38: -50105.49114 | Z38: 2455169.066 | AA38: -4018.005329 | AB38: 2451151.061 | AC38: ='[6]RSD-NO'!FV37 -> 2013276 | AD38: 437875.0607 | AE38: 218937.5303 | AF38: 2299408 | AG38: 0 | AH38: 48 | AI38: 201408 | AJ38: ='[7]February midyear adj '!E160 -> 12 | AK38: 25176 | AL38: 226584 | AM38: 2525992 | AN38: -44204.86 | AO38: -6314.98 | AP38: -50519.84 | AQ38: 2475472.16 | AR38: -4303 | AS38: 2471169.16 | AT38: ='[6]RSD-NO'!FY37 -> 1891136 | AU38: 580033.16 | AV38: 290016.58 | AX38: 4922320.221 | AY38: 508954.1103 | AZ38: 81351 | BA38: =ROUND((AV38/$AV$66)*$BA$1,0)+1 -> 208666 | BB38: -0.4199999999
A39: 390001 | B39: Dryades YMCA (James M. Singleton Charter Middle) Not in a District Building | C39: ='[3]Table 5B1_RSD_Orleans'!C42 -> 667 | D39: 1639281 | E39: ='[3]Table 5B1_RSD_Orleans'!F42 -> 650.5523487 | F39: 433918.4166 | G39: 2073199.417 | H39: =[4]Reformatted!G40 -> 13 | I39: 18681.26445 | J39: =[4]Reformatted!O40 -> 29 | K39: 250041.5396 | L39: =[4]Reformatted!AA40 -> 4 | M39: 63228.89507 | N39: 331951.6991 | O39: 2405151.116 | P39: ='[5]October midyear adj'!K195 -> -253785.036 | Q39: -62 | R39: 61073.86056 | S39: -192711.1754 | T39: ='[5]February midyear adj '!K161 -> -18419.88164 | U39: -211131.057 | V39: 2194020.059 | W39: -38395.35103 | X39: -5485.050147 | Y39: -43880.40117 | Z39: 2150139.657 | AA39: -3307.386091 | AB39: 2146832.271 | AC39: ='[6]RSD-NO'!FV38 -> 1925963 | AD39: 220869.2713 | AE39: 110434.6357 | AF39: 0 | AG39: =C39*$AG$3 -> 3257628 | AH39: -62 | AI39: =AH39*$AG$3 -> -302808 | AJ39: ='[7]February midyear adj '!E161 -> -9 | AK39: =AJ39*($AG$3*0.5) -> -21978 | AL39: -324786 | AM39: 2932842 | AN39: -51324.735 | AO39: -7332.105 | AP39: -58656.84 | AQ39: 2874185.16 | AR39: 0 | AS39: 2874185.16 | AT39: ='[6]RSD-NO'!FY38 -> 2396409 | AU39: 477776.16 | AV39: 238888.08 | AX39: 5021017.431 | AY39: 349322.7157 | AZ39: 67010 | BA39: 171878 | BB39: 0.08000000007
A40: 391001 | B40: Friends of King (Martin Luther King Elem.) | C40: ='[3]Table 5B1_RSD_Orleans'!C43 -> 686 | D40: 1685977 | E40: ='[3]Table 5B1_RSD_Orleans'!F43 -> 721.2833797 | F40: 494800.3985 | G40: 2180777.398 | H40: =[4]Reformatted!G41 -> 25 | I40: 35925.50856 | J40: =[4]Reformatted!O41 -> 33 | K40: 284530.0278 | L40: =[4]Reformatted!AA41 -> 1 | M40: 15807.22377 | N40: 336262.7601 | O40: 2517040.159 | P40: ='[5]October midyear adj'!K196 -> -8328.076125 | Q40: -2 | R40: 1970.124534 | S40: -6357.951591 | T40: ='[5]February midyear adj '!K162 -> 20820.19031 | U40: 14462.23872 | V40: 2531502.397 | W40: -44301.29195 | X40: -6328.755993 | Y40: =W40+X40 -> -50630.04795 | Z40: 2480872.349 | AA40: -2868.463824 | AB40: =Z40+AA40 -> 2478003.886 | AC40: ='[6]RSD-NO'!FV39 -> 2112025 | AD40: 365978.8855 | AE40: 182989.4428 | AF40: =C40*$AF$3 -> 2878456 | AG40: 0 | AH40: =Q40 -> -2 | AI40: -8392 | AJ40: ='[7]February midyear adj '!E162 -> 10 | AK40: =AJ40*($AF$3*0.5) -> 20980 | AL40: 12588 | AM40: 2891044 | AN40: -50593.27 | AO40: -7227.61 | AP40: =AN40+AO40 -> -57820.88 | AQ40: 2833223.12 | AR40: -2051.5 | AS40: =AQ40+AR40 -> 2831171.62 | AT40: ='[6]RSD-NO'!FY39 -> 2245784 | AU40: 585387.62 | AV40: 292693.81 | AX40: 5309175.506 | AY40: =AV40+AE40 -> 475683.2528 | AZ40: 82102 | BA40: =ROUND((AV40/$AV$66)*$BA$1,0)+1 -> 210592 | BB40: -0.1899999999
A41: 391002 | B41: Friends of King (Joseph A. Craig) | C41: ='[3]Table 5B1_RSD_Orleans'!C44 -> 420 | D41: 1032231 | E41: ='[3]Table 5B1_RSD_Orleans'!F44 -> 746.0335616 | F41: 313334.0959 | G41: 1345565.096 | H41: =[4]Reformatted!G42 -> 7 | I41: 10059.1424 | J41: =[4]Reformatted!O42 -> 28 | K41: 241419.4175 | L41: =[4]Reformatted!AA42 -> 13 | M41: 205493.909 | N41: 456972.4689 | O41: 1802537.565 | P41: ='[5]October midyear adj'!K197 -> -376990.942 | Q41: -90 | R41: 88655.60403 | S41: -288335.338 | T41: ='[5]February midyear adj '!K163 -> 35604.70008 | U41: -252730.6379 | V41: 1549806.927 | W41: -27121.62122 | X41: -3874.517317 | Y41: -30996.13854 | Z41: 1518810.788 | AA41: 0 | AB41: 1518810.788 | AC41: ='[6]RSD-NO'!FV40 -> 1291840 | AD41: 226970.7883 | AE41: 113485.3942 | AF41: 1762320 | AG41: 0 | AH41: -90 | AI41: -377640 | AJ41: ='[7]February midyear adj '!E163 -> 17 | AK41: 35666 | AL41: -341974 | AM41: 1420346 | AN41: -24856.055 | AO41: -3550.865 | AP41: -28406.92 | AQ41: 1391939.08 | AR41: 0 | AS41: 1391939.08 | AT41: ='[6]RSD-NO'!FY40 -> 1137896 | AU41: 254043.08 | AV41: 127021.54 | AX41: 2910749.868 | AY41: 240506.9342 | AZ41: =ROUND((AV41/$AV$66)*$AZ$1,0) -> 35630 | BA41: =ROUND((AV41/$AV$66)*$BA$1,0)+1 -> 91392 | BB41: -0.46
A42: 392001 | B42: New Orleans Charter School Fdtn. (Mc #28 City Park) | C42: ='[3]Table 5B1_RSD_Orleans'!C45 -> 399 | D42: 980619 | E42: ='[3]Table 5B1_RSD_Orleans'!F45 -> 600.2165598 | F42: 239486.4074 | G42: 1220105.407 | H42: =[4]Reformatted!G43 -> 8 | I42: 11496.16274 | J42: =[4]Reformatted!O43 -> 17 | K42: 146576.0749 | L42: =[4]Reformatted!AA43 -> 4 | M42: 63228.89507 | N42: 221301.1327 | O42: 1441406.54 | P42: ='[5]October midyear adj'!K198 -> 92988.33858 | Q42: 23 | R42: -22656.43214 | S42: 70331.90644 | T42: ='[5]February midyear adj '!K164 -> 6064.456864 | U42: 76396.36331 | V42: 1517802.903 | W42: -26561.55081 | X42: -3794.507259 | Y42: -30356.05807 | Z42: 1487446.845 | AA42: -2012.769265 | AB42: 1485434.076 | AC42: ='[6]RSD-NO'!FV41 -> 1229368 | AD42: 256066.0761 | AE42: 128033.038 | AF42: 1674204 | AG42: 0 | AH42: 23 | AI42: 96508 | AJ42: ='[7]February midyear adj '!E164 -> 3 | AK42: 6294 | AL42: 102802 | AM42: 1777006 | AN42: -31097.605 | AO42: -4442.515 | AP42: -35540.12 | AQ42: 1741465.88 | AR42: -2251.5 | AS42: 1739214.38 | AT42: ='[6]RSD-NO'!FY41 -> 1349148 | AU42: 390066.38 | AV42: 195033.19 | AX42: 3224648.456 | AY42: 323066.228 | AZ42: 54708 | BA42: =ROUND((AV42/$AV$66)*$BA$1,0) -> 140325 | BB42: 0.1899999999
A43: 393001 | B43: Choice Foundation (Lafayette Academy) | C43: ='[3]Table 5B1_RSD_Orleans'!C46 -> 785 | D43: 1929289 | E43: ='[3]Table 5B1_RSD_Orleans'!F46 -> 776.9034431 | F43: 609869.2028 | G43: 2539158.203 | H43: =[4]Reformatted!G44 -> 28 | I43: 40236.56959 | J43: =[4]Reformatted!O44 -> 68 | K43: 586304.2997 | L43: =[4]Reformatted!AA44 -> 8 | M43: 126457.7901 | N43: 752998.6594 | O43: 3292156.862 | P43: ='[5]October midyear adj'!K199 -> 485260.6845 | Q43: 115 | R43: -113282.1607 | S43: 371978.5238 | T43: ='[5]February midyear adj '!K165 -> -29537.60688 | U43: 342440.9169 | V43: 3634597.779 | W43: -63605.46113 | X43: -9086.494448 | Y43: -72691.95558 | Z43: 3561905.824 | AA43: -4028.930539 | AB43: 3557876.893 | AC43: ='[6]RSD-NO'!FV42 -> 2912711 | AD43: 645165.893 | AE43: 322582.9465 | AF43: 3293860 | AG43: 0 | AH43: 115 | AI43: 482540 | AJ43: ='[7]February midyear adj '!E165 -> -14 | AK43: -29372 | AL43: 453168 | AM43: 3747028 | AN43: -65572.99 | AO43: -9367.57 | AP43: -74940.56 | AQ43: 3672087.44 | AR43: -4203 | AS43: 3667884.44 | AT43: ='[6]RSD-NO'!FY42 -> 2778073 | AU43: 889811.44 | AV43: 444905.72 | AX43: 7225761.333 | AY43: 767488.6665 | AZ43: 124799 | BA43: =ROUND((AV43/$AV$66)*$BA$1,0) -> 320107 | BB43: -0.28
A44: 393002 | B44: Choice Foundation (Esperanza/Crossman) | C44: ='[3]Table 5B1_RSD_Orleans'!C47 -> 422 | D44: 1037146 | E44: ='[3]Table 5B1_RSD_Orleans'!F47 -> 642.8906551 | F44: 271299.8565 | G44: 1308445.856 | H44: =[4]Reformatted!G45 -> 7 | I44: 10059.1424 | J44: =[4]Reformatted!O45 -> 40 | K44: 344884.8822 | L44: =[4]Reformatted!AA45 -> 8 | M44: 126457.7901 | N44: 481401.8147 | O44: 1789847.671 | P44: ='[5]October midyear adj'!K200 -> 155254.5228 | Q44: 38 | R44: -37432.36615 | S44: 117822.1567 | T44: ='[5]February midyear adj '!K166 -> 12256.93601 | U44: 130079.0927 | V44: 1919926.764 | W44: -33598.71837 | X44: -4799.81691 | Y44: -38398.53528 | Z44: 1881528.229 | AA44: -3299.625993 | AB44: 1878228.603 | AC44: ='[6]RSD-NO'!FV43+8454 -> 1508438 | AD44: 369790.6026 | AE44: 184895.3013 | AF44: 1770712 | AG44: 0 | AH44: 38 | AI44: 159448 | AJ44: ='[7]February midyear adj '!E166 -> 6 | AK44: 12588 | AL44: 172036 | AM44: 1942748 | AN44: -33998.09 | AO44: -4856.87 | AP44: -38854.96 | AQ44: 1903893.04 | AR44: -2151.5 | AS44: 1901741.54 | AT44: ='[6]RSD-NO'!FY43 -> 1458208 | AU44: 443533.54 | AV44: 221766.77 | AX44: 3779970.143 | AY44: 406662.0713 | AZ44: 62207 | BA44: =ROUND((AV44/$AV$66)*$BA$1,0) -> 159560 | BB44: -0.23
A45: 393003 | B45: Choice Foundation (Takeover) (McDonogh #42) | C45: ='[3]Table 5B1_RSD_Orleans'!C48 -> 480 | D45: 1179692 | E45: ='[3]Table 5B1_RSD_Orleans'!F48 -> 746.0335616 | F45: 358096.1096 | G45: 1537788.11 | H45: =[4]Reformatted!G46 -> 4 | I45: 5748.08137 | J45: =[4]Reformatted!O46 -> 12 | K45: 103465.4647 | L45: =[4]Reformatted!AA46 -> 4 | M45: 63228.89507 | N45: 172442.4411 | O45: 1710230.551 | P45: ='[5]October midyear adj'!K201 -> -314159.1183 | Q45: -75 | R45: 73879.67003 | S45: -240279.4483 | T45: ='[5]February midyear adj '!K167 -> 81681.37077 | U45: -158598.0775 | V45: 1551632.473 | W45: -27153.56828 | X45: -3879.081183 | Y45: -31032.64946 | Z45: 1520599.824 | AA45: 0 | AB45: 1520599.824 | AC45: ='[6]RSD-NO'!FV44 -> 1295457 | AD45: 225142.8237 | AE45: 112571.4118 | AF45: 2014080 | AG45: 0 | AH45: -75 | AI45: -314700 | AJ45: ='[7]February midyear adj '!E167 -> 39 | AK45: 81822 | AL45: -232878 | AM45: 1781202 | AN45: -31171.035 | AO45: -4453.005 | AP45: -35624.04 | AQ45: 1745577.96 | AR45: 0 | AS45: 1745577.96 | AT45: ='[6]RSD-NO'!FY44 -> 1396967 | AU45: 348610.96 | AV45: 174305.48 | AX45: 3266177.784 | AY45: 286876.8918 | AZ45: 48894 | BA45: =ROUND((AV45/$AV$66)*$BA$1,0)-1 -> 125411 | BB45: 0.48
A46: 395001 | B46: Algiers Charter School Assoc. (Martin Behrman) | C46: ='[3]Table 5B1_RSD_Orleans'!C49 -> 641 | D46: 1575381 | E46: ='[3]Table 5B1_RSD_Orleans'!F49 -> 678.3819409 | F46: 434842.8241 | G46: 2010223.824 | H46: =[4]Reformatted!G47 -> 17 | I46: 24429.34582 | J46: =[4]Reformatted!O47 -> 37 | K46: 319018.516 | L46: =[4]Reformatted!AA47 -> 11 | M46: 173879.4614 | N46: 517327.3233 | O46: 2527551.147 | P46: ='[5]October midyear adj'!K202 -> 140118.6452 | Q46: 34 | R46: -33492.11708 | S46: 106626.5281 | T46: ='[5]February midyear adj '!K168 -> -4121.136624 | U46: 102505.3915 | V46: 2630056.539 | W46: -46025.98943 | X46: -6575.141347 | Y46: -52601.13078 | Z46: 2577455.408 | AA46: -4831.114557 | AB46: 2572624.294 | AC46: ='[6]RSD-NO'!FV45 -> 2151754 | AD46: 420870.2935 | AE46: 210435.1468 | AF46: 2689636 | AG46: 0 | AH46: 34 | AI46: 142664 | AJ46: ='[7]February midyear adj '!E168 -> -2 | AK46: -4196 | AL46: 138468 | AM46: 2828104 | AN46: -49491.82 | AO46: -7070.26 | AP46: -56562.08 | AQ46: 2771541.92 | AR46: -2051.5 | AS46: 2769490.42 | AT46: ='[6]RSD-NO'!FY45 -> 2156489 | AU46: 613001.42 | AV46: 306500.71 | AX46: 5342114.714 | AY46: 516935.8568 | AZ46: 85975 | BA46: =ROUND((AV46/$AV$66)*$BA$1,0)+1 -> 220526 | BB46: -0.29
A47: 395002 | B47: Algiers Charter School Assoc. (Dwight D. Eisenhower) | C47: ='[3]Table 5B1_RSD_Orleans'!C50 -> 592 | D47: 1454954 | E47: ='[3]Table 5B1_RSD_Orleans'!F50 -> 686.9224102 | F47: 406658.0668 | G47: 1861612.067 | H47: =[4]Reformatted!G48 -> 23 | I47: 33051.46788 | J47: =[4]Reformatted!O48 -> 24 | K47: 206930.9293 | L47: =[4]Reformatted!AA48 -> 15 | M47: 237108.3565 | N47: 477090.7537 | O47: 2338702.821 | P47: ='[5]October midyear adj'!K203 -> -28907.73965 | Q47: -7 | R47: 6895.435869 | S47: -22012.30378 | T47: ='[5]February midyear adj '!K169 -> 43361.60948 | U47: 21349.30569 | V47: 2360052.126 | W47: -41300.91221 | X47: -5900.130316 | Y47: -47201.04252 | Z47: 2312851.084 | AA47: -13433.51659 | AB47: 2299417.567 | AC47: ='[6]RSD-NO'!FV46 -> 1951698 | AD47: 347719.5671 | AE47: 173859.7836 | AF47: 2484032 | AG47: 0 | AH47: -7 | AI47: -29372 | AJ47: ='[7]February midyear adj '!E169 -> 21 | AK47: 44058 | AL47: 14686 | AM47: 2498718 | AN47: -43727.565 | AO47: -6246.795 | AP47: -49974.36 | AQ47: 2448743.64 | AR47: -10557.5 | AS47: 2438186.14 | AT47: ='[6]RSD-NO'!FY46 -> 1932484 | AU47: 505702.14 | AV47: 252851.07 | AX47: 4737603.707 | AY47: 426710.8536 | AZ47: 70926 | BA47: =ROUND((AV47/$AV$66)*$BA$1,0) -> 181925 | BB47: 0.07000000007
A48: 395003 | B48: Algiers Charter School Assoc. (William J. Fischer) | C48: ='[3]Table 5B1_RSD_Orleans'!C51 -> 610 | D48: 1499192 | E48: ='[3]Table 5B1_RSD_Orleans'!F51 -> 761.358757 | F48: 464428.8418 | G48: 1963620.842 | H48: =[4]Reformatted!G49 -> 17 | I48: 24429.34582 | J48: =[4]Reformatted!O49 -> 40 | K48: 344884.8822 | L48: =[4]Reformatted!AA49 -> 10 | M48: 158072.2377 | N48: 527386.4657 | O48: 2491007.307 | P48: ='[5]October midyear adj'!K204 -> 109306.9494 | Q48: 26 | R48: -25611.61894 | S48: 83695.3305 | T48: ='[5]February midyear adj '!K170 -> -4204.11344 | U48: 79491.21706 | V48: 2570498.524 | W48: -44983.72418 | X48: -6426.246311 | Y48: -51409.97049 | Z48: 2519088.554 | AA48: -25409.89076 | AB48: 2493678.663 | AC48: ='[6]RSD-NO'!FV47 -> 2050454 | AD48: 443224.6632 | AE48: 221612.3316 | AF48: 2559560 | AG48: 0 | AH48: 26 | AI48: 109096 | AJ48: ='[7]February midyear adj '!E170 -> -2 | AK48: -4196 | AL48: 104900 | AM48: 2664460 | AN48: -46628.05 | AO48: -6661.15 | AP48: -53289.2 | AQ48: 2611170.8 | AR48: -23166.5 | AS48: 2588004.3 | AT48: ='[6]RSD-NO'!FY47 -> 2022189 | AU48: 565815.3 | AV48: 282907.65 | AX48: 5081682.963 | AY48: 504519.9816 | AZ48: 79357 | BA48: =ROUND((AV48/$AV$66)*$BA$1,0)+1 -> 203551 | BB48: -0.3500000001
A49: 395004 | B49: Algiers Charter School Assoc. (McDonogh #32) | C49: ='[3]Table 5B1_RSD_Orleans'!C52 -> 471 | D49: 1157573 | E49: ='[3]Table 5B1_RSD_Orleans'!F52 -> 1003.469839 | F49: 472634.2943 | G49: 1630207.294 | H49: =[4]Reformatted!G50 -> 8 | I49: 11496.16274 | J49: =[4]Reformatted!O50 -> 21 | K49: 181064.5631 | L49: =[4]Reformatted!AA50 -> 10 | M49: 158072.2377 | N49: 350632.9635 | O49: 1980840.258 | P49: ='[5]October midyear adj'!K205 -> -124494.2866 | Q49: -28 | R49: 27581.74348 | S49: -96912.54314 | T49: ='[5]February midyear adj '!K171 -> 71139.59236 | U49: -25772.95079 | V49: 1955067.307 | W49: -34213.67787 | X49: -4887.668268 | Y49: -39101.34614 | Z49: 1915965.961 | AA49: -28217.82486 | AB49: 1887748.136 | AC49: ='[6]RSD-NO'!FV48 -> 1563253 | AD49: 324495.1361 | AE49: 162247.568 | AF49: 1976316 | AG49: 0 | AH49: -28 | AI49: -117488 | AJ49: ='[7]February midyear adj '!E171 -> 32 | AK49: 67136 | AL49: -50352 | AM49: 1925964 | AN49: -33704.37 | AO49: -4814.91 | AP49: -38519.28 | AQ49: 1887444.72 | AR49: -18863.5 | AS49: 1868581.22 | AT49: ='[6]RSD-NO'!FY48 -> 1481520 | AU49: 387061.22 | AV49: 193530.61 | AX49: 3756329.356 | AY49: 355778.178 | AZ49: 54287 | BA49: =ROUND((AV49/$AV$66)*$BA$1,0) -> 139244 | BB49: -0.39
A50: 395005 | B50: Algiers Charter School Assoc. (O. P. Walker Sr. High) | C50: ='[3]Table 5B1_RSD_Orleans'!C53 -> 858 | D50: 2108700 | E50: ='[3]Table 5B1_RSD_Orleans'!F53 -> 592.0552901 | F50: 507983.4389 | G50: 2616683.439 | H50: =[4]Reformatted!G51 -> 3 | I50: 4311.061027 | J50: =[4]Reformatted!O51 -> 86 | K50: 741502.4967 | L50: =[4]Reformatted!AA51 -> 23 | M50: 363566.1466 | N50: 1109379.704 | O50: 3726063.143 | P50: ='[5]October midyear adj'!K206 -> 181566.4488 | Q50: 45 | R50: -44327.80202 | S50: 137238.6468 | T50: ='[5]February midyear adj '!K172 -> -48417.71968 | U50: 88820.92709 | V50: 3814884.07 | W50: -66760.47123 | X50: -9537.210176 | Y50: -76297.68141 | Z50: 3738586.389 | AA50: -34130.72016 | AB50: 3704455.669 | AC50: ='[6]RSD-NO'!FV49+8454 -> 3069916 | AD50: 634539.6688 | AE50: 317269.8344 | AF50: 3600168 | AG50: 0 | AH50: 45 | AI50: 188820 | AJ50: ='[7]February midyear adj '!E172 -> -24 | AK50: -50352 | AL50: 138468 | AM50: 3738636 | AN50: -65426.13 | AO50: -9346.59 | AP50: -74772.72 | AQ50: 3663863.28 | AR50: -20715 | AS50: 3643148.28 | AT50: ='[6]RSD-NO'!FY49 -> 2850050 | AU50: 793098.28 | AV50: 396549.14 | AX50: 7347603.949 | AY50: 713818.9744 | AZ50: 111235 | BA50: =ROUND((AV50/$AV$66)*$BA$1,0)-1 -> 285314 | BB50: 0.1399999999
A51: 395007 | B51: Algiers Charter School Assoc. (ACSA Tech High at Rosenwald) | C51: ='[3]Table 5B1_RSD_Orleans'!C54 -> 278 | D51: =ROUND(C51*$D$3,0) -> 683238 | E51: ='[3]Table 5B1_RSD_Orleans'!F54 -> 907.6966606 | F51: 252339.6717 | G51: 935577.6717 | H51: =[4]Reformatted!G52 -> 2 | I51: 2874.040685 | J51: =[4]Reformatted!O52 -> 23 | K51: 198308.8073 | L51: =[4]Reformatted!AA52 -> 6 | M51: 94843.3426 | N51: 296026.1905 | O51: 1231603.862 | P51: ='[5]October midyear adj'!K207 -> -134863.9916 | Q51: -31 | R51: 30536.93028 | S51: -104327.0614 | T51: ='[5]February midyear adj '!K173 -> 30453.1594 | U51: -73873.90197 | V51: 1157729.96 | W51: -20260.2743 | X51: -2894.324901 | Y51: -23154.5992 | Z51: 1134575.361 | AA51: -48373.31615 | AB51: 1086202.045 | AC51: ='[6]RSD-NO'!FV50 -> 901135 | AD51: 185067.0449 | AE51: 92533.52243 | AF51: 1166488 | AG51: 0 | AH51: -31 | AI51: -130076 | AJ51: ='[7]February midyear adj '!E173 -> 14 | AK51: 29372 | AL51: -100704 | AM51: 1065784 | AN51: -18651.22 | AO51: -2664.46 | AP51: =AN51+AO51 -> -21315.68 | AQ51: 1044468.32 | AR51: -44381.5 | AS51: 1000086.82 | AT51: ='[6]RSD-NO'!FY50 -> 804450 | AU51: 195636.82 | AV51: 97818.41 | AX51: 2086288.865 | AY51: 190351.9324 | AZ51: 27439 | BA51: =ROUND((AV51/$AV$66)*$BA$1,0)-1 -> 70379 | BB51: 0.41
A52: 397001 | B52: Instititute of Academic Excellence, SUNO (Sophie B. Wright) | C52: ='[3]Table 5B1_RSD_Orleans'!C55 -> 469 | D52: =ROUND(C52*$D$3,0) -> 1152658 | E52: ='[3]Table 5B1_RSD_Orleans'!F55 -> 741.7236382 | F52: 347868.3863 | G52: 1500526.386 | H52: =[4]Reformatted!G53 -> 7 | I52: 10059.1424 | J52: =[4]Reformatted!O53 -> 25 | K52: 215553.0514 | L52: =[4]Reformatted!AA53 -> 5 | M52: 79036.11883 | N52: 304648.3126 | O52: 1805174.699 | P52: ='[5]October midyear adj'!K208 -> 62767.17482 | Q52: 15 | R52: -14775.93401 | S52: 47991.24081 | T52: ='[5]February midyear adj '!K174 -> -2092.239161 | U52: 45899.00165 | V52: 1851073.701 | W52: -32393.78976 | X52: -4627.684251 | Y52: -37021.47401 | Z52: 1814052.227 | AA52: 0 | AB52: 1814052.227 | AC52: ='[6]RSD-NO'!FV51 -> 1537012 | AD52: 277040.2265 | AE52: 138520.1133 | AF52: 1967924 | AG52: 0 | AH52: 15 | AI52: 62940 | AJ52: ='[7]February midyear adj '!E174 -> -1 | AK52: -2098 | AL52: 60842 | AM52: 2028766 | AN52: -35503.405 | AO52: -5071.915 | AP52: =AN52+AO52 -> -40575.32 | AQ52: 1988190.68 | AR52: 0 | AS52: 1988190.68 | AT52: ='[6]RSD-NO'!FY51 -> 1560519 | AU52: 427671.68 | AV52: 213835.84 | AX52: 3802242.907 | AY52: 352355.9533 | AZ52: 59982 | BA52: =ROUND((AV52/$AV$66)*$BA$1,0) -> 153854 | BB52: -0.16
A53: 398001 | B53: KIPP New Orleans (Edward Phillips/Kipp Believe) | C53: ='[3]Table 5B1_RSD_Orleans'!C56 -> 481 | D53: =ROUND(C53*$D$3,0) -> 1182150 | E53: ='[3]Table 5B1_RSD_Orleans'!F56 -> 643.9477884 | F53: 309738.8862 | G53: 1491888.886 | H53: =[4]Reformatted!G54 -> 10 | I53: 14370.20342 | J53: =[4]Reformatted!O54 -> 34 | K53: 293152.1498 | L53: =[4]Reformatted!AA54 -> 16 | M53: 252915.5803 | N53: 560437.9335 | O53: 2052326.82 | P53: ='[5]October midyear adj'!K209 -> 555791.5361 | Q53: 136 | R53: -133968.4683 | S53: 421823.0678 | T53: ='[5]February midyear adj '!K175 -> -28606.9173 | U53: =S53+T53 -> 393216.1505 | V53: 2445542.97 | W53: -42797.00198 | X53: -6113.857426 | Y53: -48910.8594 | Z53: 2396632.111 | AA53: -12568.72755 | AB53: 2384063.383 | AC53: ='[6]RSD-NO'!FV52 -> 2016222 | AD53: 367841.3833 | AE53: 183920.6916 | AF53: 2018276 | AG53: 0 | AH53: 136 | AI53: 570656 | AJ53: ='[7]February midyear adj '!E175 -> -14 | AK53: -29372 | AL53: 541284 | AM53: 2559560 | AN53: -44792.3 | AO53: -6398.9 | AP53: =AN53+AO53 -> -51191.2 | AQ53: 2508368.8 | AR53: 0 | AS53: 2508368.8 | AT53: ='[6]RSD-NO'!FY52 -> 1978717 | AU53: 529651.8 | AV53: 264825.9 | AX53: 4892432.183 | AY53: 448746.5916 | AZ53: 74285 | BA53: =ROUND((AV53/$AV$66)*$BA$1,0) -> 190541 | BB53: -0.1000000001
A54: 398002 | B54: KIPP New Orleans (McDonogh #15) | C54: ='[3]Table 5B1_RSD_Orleans'!C57 -> 556 | D54: =ROUND(C54*$D$3,0) -> 1366477 | E54: ='[3]Table 5B1_RSD_Orleans'!F57 -> 724.792502 | F54: 402984.6311 | G54: 1769461.631 | H54: =[4]Reformatted!G55 -> 13 | I54: 18681.26445 | J54: =[4]Reformatted!O55 -> 47 | K54: 405239.7366 | L54: =[4]Reformatted!AA55 -> 17 | M54: 268722.804 | N54: 692643.805 | O54: 2462105.436 | P54: ='[5]October midyear adj'!K210 -> 875184.9088 | Q54: 210 | R54: -206863.0761 | S54: 668321.8327 | T54: ='[5]February midyear adj '!K176 -> -6251.320777 | U54: 662070.512 | V54: 3124175.948 | W54: -54673.07909 | X54: -7810.43987 | Y54: -62483.51896 | Z54: 3061692.429 | AA54: 11533.06977 | AB54: 3073225.499 | AC54: ='[6]RSD-NO'!FV53 -> 2538737 | AD54: 534488.4989 | AE54: 267244.2495 | AF54: 2332976 | AG54: 0 | AH54: 210 | AI54: 881160 | AJ54: ='[7]February midyear adj '!E176 -> -3 | AK54: -6294 | AL54: 874866 | AM54: 3207842 | AN54: -56137.235 | AO54: -8019.605 | AP54: =AN54+AO54 -> -64156.84 | AQ54: 3143685.16 | AR54: 16112 | AS54: 3159797.16 | AT54: ='[6]RSD-NO'!FY53 -> 2447992 | AU54: 711805.16 | AV54: 355902.58 | AX54: 6233022.659 | AY54: 623146.8295 | AZ54: 99833 | BA54: =ROUND((AV54/$AV$66)*$BA$1,0) -> 256070 | BB54: -0.4199999999
A55: 398003 | B55: KIPP New Orleans (KIPP Central City Academy) | C55: ='[3]Table 5B1_RSD_Orleans'!C58 -> 387 | D55: =ROUND(C55*$D$3,0) -> 951127 | E55: ='[3]Table 5B1_RSD_Orleans'!F58 -> 592.5310423 | F55: 229309.5134 | G55: 1180436.513 | H55: =[4]Reformatted!G56 -> 10 | I55: 14370.20342 | J55: =[4]Reformatted!O56 -> 40 | K55: 344884.8822 | L55: =[4]Reformatted!AA56 -> 6 | M55: 94843.3426 | N55: 454098.4282 | O55: 1634534.942 | P55: ='[5]October midyear adj'!K211 -> 80705.7145 | Q55: 20 | R55: -19701.24534 | S55: 61004.46916 | T55: ='[5]February midyear adj '!K177 -> -4035.285725 | U55: 56969.18344 | V55: 1691504.125 | W55: -29601.32219 | X55: -4228.760313 | Y55: -33830.0825 | Z55: 1657674.043 | AA55: -20795.01587 | AB55: 1636879.027 | AC55: ='[6]RSD-NO'!FV54 -> 1356100 | AD55: 280779.0266 | AE55: 140389.5133 | AF55: 1623852 | AG55: 0 | AH55: 20 | AI55: 83920 | AJ55: ='[7]February midyear adj '!E177 -> -2 | AK55: -4196 | AL55: 79724 | AM55: 1703576 | AN55: -29812.58 | AO55: -4258.94 | AP55: =AN55+AO55 -> -34071.52 | AQ55: 1669504.48 | AR55: -12609 | AS55: 1656895.48 | AT55: ='[6]RSD-NO'!FY54 -> 1309499 | AU55: 347396.48 | AV55: 173698.24 | AX55: 3293774.507 | AY55: 314087.7533 | AZ55: 48723 | BA55: =ROUND((AV55/$AV$66)*$BA$1,0) -> 124975 | BB55: 0.24
A56: 398004 | B56: KIPP New Orleans, Inc. (Kipp Central City Primary) | C56: ='[3]Table 5B1_RSD_Orleans'!C59 -> 203 | D56: 498912 | E56: ='[3]Table 5B1_RSD_Orleans'!F59 -> 741.3157895 | F56: 150487.1053 | G56: 649399.1053 | H56: =[4]Reformatted!G57 -> 10 | I56: 14370.20342 | J56: =[4]Reformatted!O57 -> 30 | K56: 258663.6616 | L56: =[4]Reformatted!AA57 -> 7 | M56: 110650.5664 | N56: 383684.4314 | O56: 1033083.537 | P56: ='[5]October midyear adj'!K212 -> 405854.8358 | Q56: 97 | R56: -95551.0399 | S56: 310303.7959 | T56: ='[5]February midyear adj '!K178 -> 0 | U56: 310303.7959 | V56: 1343387.333 | W56: -23509.27832 | X56: -3358.468332 | Y56: -26867.74665 | Z56: 1316519.586 | AA56: -1339.597127 | AB56: 1315179.989 | AC56: =82975.5+123722+116667+116667+116667+116666+116666+116666+105236+105236 -> 1117168.5 | AD56: 198011.4888 | AE56: 99005.74441 | AF56: 851788 | AG56: 0 | AH56: 97 | AI56: 407012 | AJ56: ='[7]February midyear adj '!E178 -> 0 | AK56: 0 | AL56: 407012 | AM56: 1258800 | AN56: =-(AM56*$AN$3) -> -22029 | AO56: -3147 | AP56: -25176 | AQ56: 1233624 | AR56: 2051.5 | AS56: 1235675.5 | AT56: =68307.92+107854+101006+101006+101006+101006+101006+101006+93745+93745 -> 969687.92 | AU56: 265987.58 | AV56: 132993.79 | AX56: 2550855.489 | AY56: 231999.5344 | AZ56: 37306 | BA56: =ROUND((AV56/$AV$66)*$BA$1,0) -> 95688 | BB56: -0.21
B57: KIPP New Orleans, Inc. (Kipp Central City Primary) K-1 not in a District Building | C57: ='[3]Table 5B1_RSD_Orleans'!C60 -> 213 | D57: 523488 | E57: ='[3]Table 5B1_RSD_Orleans'!F60 -> 741.3157895 | F57: 157900.2632 | G57: 681388.2632 | I57: 0 | K57: 0 | M57: 0 | N57: 0 | O57: 681388.2632 | R57: 0 | S57: 0 | T57: =R57*E57 -> 0 | U57: 0 | V57: 681388.2632 | W57: -11924.29461 | X57: -1703.470658 | Y57: -13627.76526 | Z57: 667760.4979 | AA57: 0 | AB57: 667760.4979 | AC57: =57219.58+57220+57220+57220+57220+57219+57219+57219+56603+56603 -> 570962.58 | AD57: 96797.91789 | AE57: 48398.95895 | AF57: 0 | AG57: =C57*$AG$3 -> 1040292 | AH57: 0 | AI57: =AH57*$AG$3 -> 0 | AK57: =AJ57*($AG$3*0.5) -> 0 | AL57: 0 | AM57: =AF57+AG57+AI57+AK57 -> 1040292 | AN57: -18205.11 | AO57: =-(AM57*$AO$3) -> -2600.73 | AP57: -20805.84 | AQ57: 1019486.16 | AR57: 0 | AS57: 1019486.16 | AT57: =83235*8+73633+73633 -> 813146 | AU57: 206340.16 | AV57: 103170.08 | AX57: 1687246.658 | AY57: 151569.0389 | AZ57: 28940 | BA57: 74230 | BB57: 0.08000000002
A58: 398005 | B58: KIPP New Orleans, Inc. (Kipp Renaissance High School) | C58: ='[3]Table 5B1_RSD_Orleans'!C61 -> 271 | D58: 666035 | E58: ='[3]Table 5B1_RSD_Orleans'!F61 -> 746.0335616 | F58: 202175.0952 | G58: 868210.0952 | H58: =[4]Reformatted!G58 -> 1 | I58: 1437.020342 | J58: =[4]Reformatted!O58 -> 39 | K58: 336262.7601 | L58: =[4]Reformatted!AA58 -> 7 | M58: 110650.5664 | N58: 448350.3468 | O58: 1316560.442 | P58: ='[5]October midyear adj'!K213 -> 456577.9187 | Q58: 109 | R58: -107371.7871 | S58: 349206.1315 | T58: ='[5]February midyear adj '!K179 -> -77492.58252 | U58: 271713.549 | V58: 1588273.991 | W58: -27794.79484 | X58: -3970.684978 | Y58: -31765.47982 | Z58: 1556508.511 | AA58: -22885.09581 | AB58: 1533623.415 | AC58: ='[6]RSD-NO'!FV56 -> 1297743 | AD58: 235880.4154 | AE58: 117940.2077 | AF58: =C58*$AF$3 -> 1137116 | AG58: 0 | AH58: 109 | AI58: 457364 | AJ58: ='[7]February midyear adj '!E179 -> -37 | AK58: =AJ58*($AF$3*0.5) -> -77626 | AL58: 379738 | AM58: 1516854 | AN58: -26544.945 | AO58: -3792.135 | AP58: -30337.08 | AQ58: 1486516.92 | AR58: -21015 | AS58: 1465501.92 | AT58: ='[6]RSD-NO'!FY56 -> 1183855 | AU58: 281646.92 | AV58: 140823.46 | AX58: 2999125.335 | AY58: 258763.6677 | AZ58: 39502 | BA58: =ROUND((AV58/$AV$66)*$BA$1,0)-1 -> 101321 | BB58: 0.46
A59: 398006 | B59: KIPP New Orleans, Inc. Kipp N. O. Leadership Academy) | C59: ='[3]Table 5B1_RSD_Orleans'!C62 -> 309 | D59: 759427 | E59: ='[3]Table 5B1_RSD_Orleans'!F62 -> 746.0335616 | F59: 230524.3705 | G59: 989951.3705 | H59: =[4]Reformatted!G59 -> 11 | I59: 15807.22377 | J59: =[4]Reformatted!O59 -> 44 | K59: 379373.3704 | L59: =[4]Reformatted!AA59 -> 13 | M59: 205493.909 | N59: 600674.5031 | O59: 1590625.874 | P59: ='[5]October midyear adj'!K214 -> 917344.6256 | Q59: 219 | R59: -215728.6365 | S59: 701615.9891 | T59: ='[5]February midyear adj '!K180 -> -29321.51771 | U59: 672294.4714 | V59: 2262920.345 | W59: -39601.10604 | X59: -5657.300863 | Y59: -45258.4069 | Z59: 2217661.938 | AA59: -11303.50741 | AB59: 2206358.431 | AC59: ='[6]RSD-NO'!FV57 -> 1806986 | AD59: 399372.4307 | AE59: 199686.2154 | AF59: 1296564 | AG59: 0 | AH59: 219 | AI59: 918924 | AJ59: ='[7]February midyear adj '!E180 -> -14 | AK59: -29372 | AL59: 889552 | AM59: 2186116 | AN59: -38257.03 | AO59: -5465.29 | AP59: -43722.32 | AQ59: 2142393.68 | AR59: -8406 | AS59: 2133987.68 | AT59: ='[6]RSD-NO'!FY57 -> 1675482 | AU59: 458505.68 | AV59: 229252.84 | AX59: 4340346.111 | AY59: 428939.0554 | AZ59: 64307 | BA59: 164946 | BB59: -0.1599999999
A60: 399001 | B60: Firstline Schools, Inc. (Samuel J. Green) | C60: ='[3]Table 5B1_RSD_Orleans'!C63 -> 515 | D60: 1265712 | E60: ='[3]Table 5B1_RSD_Orleans'!F63 -> 752.8506214 | F60: 387718.07 | G60: 1653430.07 | H60: =[4]Reformatted!G60 -> 23 | I60: 33051.46788 | J60: =[4]Reformatted!O60 -> 63 | K60: 543193.6894 | L60: =[4]Reformatted!AA60 -> 10 | M60: 158072.2377 | N60: 734317.395 | O60: 2387747.465 | P60: ='[5]October midyear adj'!K215 -> 0 | Q60: 0 | R60: 0 | S60: 0 | T60: ='[5]February midyear adj '!K181 -> -14684.61857 | U60: -14684.61857 | V60: 2373062.846 | W60: -41528.59981 | X60: -5932.657116 | Y60: -47461.25693 | Z60: 2325601.59 | AA60: 0 | AB60: 2325601.59 | AC60: ='[6]RSD-NO'!FV58 -> 1961436 | AD60: 364165.5895 | AE60: 182082.7948 | AF60: 2160940 | AG60: 0 | AH60: 0 | AI60: 0 | AJ60: ='[7]February midyear adj '!E181 -> -7 | AK60: -14686 | AL60: -14686 | AM60: 2146254 | AN60: -37559.445 | AO60: -5365.635 | AP60: -42925.08 | AQ60: 2103328.92 | AR60: 0 | AS60: 2103328.92 | AT60: ='[6]RSD-NO'!FY58 -> 1676185 | AU60: 427143.92 | AV60: 213571.96 | AX60: 4428930.51 | AY60: 395654.7548 | AZ60: 59908 | BA60: 153664 | BB60: -0.04000000004
A61: 399002 | B61: Firstline Schools, Inc. (N. O. Charter Middle at Ashe) | C61: ='[3]Table 5B1_RSD_Orleans'!C64 -> 421 | D61: 1034689 | E61: ='[3]Table 5B1_RSD_Orleans'!F64 -> 803.9715292 | F61: 338472.0138 | G61: 1373161.014 | H61: =[4]Reformatted!G61 -> 34 | I61: 48858.69164 | J61: =[4]Reformatted!O61 -> 62 | K61: 534571.5674 | L61: =[4]Reformatted!AA61 -> 9 | M61: 142265.0139 | N61: 725695.2729 | O61: 2098856.287 | P61: ='[5]October midyear adj'!K216 -> 293024.1086 | Q61: 69 | R61: -67969.29642 | S61: 225054.8122 | T61: ='[5]February midyear adj '!K182 -> -10616.81553 | U61: 214437.9967 | V61: 2313294.283 | W61: -40482.64996 | X61: -5783.235708 | Y61: -46265.88567 | Z61: 2267028.398 | AA61: -4630.67073 | AB61: =Z61+AA61 -> 2262397.727 | AC61: ='[6]RSD-NO'!FV59 -> 1883608 | AD61: 378789.727 | AE61: 189394.8635 | AF61: 1766516 | AG61: 0 | AH61: 69 | AI61: 289524 | AJ61: ='[7]February midyear adj '!E182 -> -5 | AK61: -10490 | AL61: 279034 | AM61: 2045550 | AN61: -35797.125 | AO61: -5113.875 | AP61: =AN61+AO61 -> -40911 | AQ61: 2004639 | AR61: 0 | AS61: =AQ61+AR61 -> 2004639 | AT61: ='[6]RSD-NO'!FY59 -> 1503775 | AU61: 500864 | AV61: 250432 | AX61: 4267036.727 | AY61: 439826.8635 | AZ61: 70248 | BA61: 180184 | BB61: 0
A62: 399003 | B62: Firstline Schools, Inc.* (Firstline H.S. Charter)(Clark) | C62: ='[3]Table 5B1_RSD_Orleans'!C65 -> 385 | D62: 946212 | E62: ='[3]Table 5B1_RSD_Orleans'!F65 -> 746.0335616 | F62: 287222.9212 | G62: 1233434.921 | H62: =[4]Reformatted!G62 -> 5 | I62: 7185.101712 | J62: =[4]Reformatted!O62 -> 56 | K62: 482838.835 | L62: =[4]Reformatted!AA62 -> 14 | M62: 221301.1327 | N62: 711325.0695 | O62: 1944759.991 | P62: ='[5]October midyear adj'!K217 -> 209439.4122 | Q62: 50 | R62: -49253.11335 | S62: 160186.2989 | T62: ='[5]February midyear adj '!K183 -> -85870.15901 | U62: 74316.13986 | V62: 2019076.131 | W62: -35333.83229 | X62: -5047.690326 | Y62: -40381.52261 | Z62: 1978694.608 | AA62: -19990.30329 | AB62: 1958704.305 | AC62: ='[6]RSD-NO'!FV60 -> 1547414 | AD62: 411290.3047 | AE62: 205645.1523 | AF62: 1615460 | AG62: 0 | AH62: 50 | AI62: 209800 | AJ62: ='[7]February midyear adj '!E183 -> -41 | AK62: -86018 | AL62: 123782 | AM62: 1739242 | AN62: -30436.735 | AO62: -4348.105 | AP62: -34784.84 | AQ62: 1704457.16 | AR62: -21015 | AS62: 1683442.16 | AT62: ='[6]RSD-NO'!FY60 -> 1297388 | AU62: 386054.16 | AV62: 193027.08 | AX62: 3642146.465 | AY62: 398672.2323 | AZ62: 54145 | BA62: =ROUND((AV62/$AV$66)*$BA$1,0) -> 138882 | BB62: 0.07999999996
A63: 399004 | B63: Firstline Schools, Inc. (Dibert School) | C63: ='[3]Table 5B1_RSD_Orleans'!C66 -> 425 | D63: 1044519 | E63: ='[3]Table 5B1_RSD_Orleans'!F66 -> 746.0335616 | F63: 317064.2637 | G63: 1361583.264 | H63: =[4]Reformatted!G63 -> 21 | I63: 30177.42719 | J63: =[4]Reformatted!O63 -> 53 | K63: 456972.4689 | L63: =[4]Reformatted!AA63 -> 12 | M63: 189686.6852 | N63: 676836.5813 | O63: 2038419.845 | P63: ='[5]October midyear adj'!K218 -> 213628.2005 | Q63: 51 | R63: -50238.17562 | S63: 163390.0249 | T63: ='[5]February midyear adj '!K184 -> -8377.576489 | U63: 155012.4484 | V63: 2193432.293 | W63: -38385.06513 | X63: -5483.580733 | Y63: -43868.64587 | Z63: 2149563.647 | AA63: 0 | AB63: 2149563.647 | AC63: ='[6]RSD-NO'!FV61+8454 -> 1703524 | AD63: 446039.6475 | AE63: 223019.8237 | AF63: 1783300 | AG63: 0 | AH63: 51 | AI63: 213996 | AJ63: ='[7]February midyear adj '!E184 -> -4 | AK63: -8392 | AL63: 205604 | AM63: 1988904 | AN63: -34805.82 | AO63: -4972.26 | AP63: -39778.08 | AQ63: 1949125.92 | AR63: 0 | AS63: 1949125.92 | AT63: ='[6]RSD-NO'!FY61 -> 1483154 | AU63: 465971.92 | AV63: 232985.96 | AX63: 4098689.567 | AY63: 456005.7837 | AZ63: 65354 | BA63: =ROUND((AV63/$AV$66)*$BA$1,0) -> 167632 | BB63: -0.04000000004
A64: 399005 | B64: Firstline Schools, Inc. (Langston Hughes Academy) | C64: ='[3]Table 5B1_RSD_Orleans'!C67 -> 614 | D64: 1509023 | E64: ='[3]Table 5B1_RSD_Orleans'!F67 -> 746.0335616 | F64: 458064.6068 | G64: 1967087.607 | H64: =[4]Reformatted!G64 -> 14 | I64: 20118.28479 | J64: =[4]Reformatted!O64 -> 57 | K64: 491460.9571 | L64: =[4]Reformatted!AA64 -> 14 | M64: 221301.1327 | N64: 732880.3746 | O64: 2699967.981 | P64: ='[5]October midyear adj'!K219 -> 138230.0121 | Q64: 33 | R64: -32507.05481 | S64: 105722.9573 | T64: ='[5]February midyear adj '!K185 -> -4188.788245 | U64: 101534.169 | V64: 2801502.15 | W64: -49026.28763 | X64: -7003.755376 | Y64: -56030.04301 | Z64: 2745472.107 | AA64: 0 | AB64: 2745472.107 | AC64: ='[6]RSD-NO'!FV62 -> 2250049 | AD64: 495423.1075 | AE64: 247711.5537 | AF64: 2576344 | AG64: 0 | AH64: 33 | AI64: 138468 | AJ64: ='[7]February midyear adj '!E185 -> -2 | AK64: -4196 | AL64: 134272 | AM64: 2710616 | AN64: -47435.78 | AO64: -6776.54 | AP64: -54212.32 | AQ64: 2656403.68 | AR64: 0 | AS64: 2656403.68 | AT64: ='[6]RSD-NO'!FY62 -> 2068042 | AU64: 588361.68 | AV64: 294180.84 | AX64: 5401875.787 | AY64: 541892.3937 | AZ64: 82520 | BA64: =ROUND((AV64/$AV$66)*$BA$1,0) -> 211661 | BB64: -0.1599999999
B65: Total RSD Chartered | C65: =SUM(C8:C64) -> 23731 | D65: =SUM(D8:D64) -> 58323496 | E65: N/A | F65: =SUM(F8:F64) -> 17398336.98 | G65: 75721832.98 | H65: =SUM(H8:H64) -> 650 | I65: =SUM(I8:I64) -> 934063.2226 | J65: 1874 | K65: 16157856.73 | L65: 453 | M65: 7160672.366 | N65: 24252592.32 | O65: 99974425.3 | P65: 6020078.033 | Q65: 1442 | R65: -1420459.789 | S65: 4599618.244 | T65: 100735.6833 | U65: 4700353.927 | V65: 104674779.2 | W65: -1831808.636 | X65: -261686.9481 | Y65: -2093495.585 | Z65: 102581283.6 | AA65: -235100.3928 | AB65: 102346183.2 | AC65: =SUM(AC8:AC64) -> 85065147.08 | AD65: 17281036.17 | AE65: 8640518.085 | AF65: 94023968 | AG65: 6461532 | AH65: =SUM(AH8:AH64) -> 1442 | AI65: =SUM(AI8:AI64) -> 6005912 | AJ65: =SUM(AJ8:AJ64) -> 44 | AK65: 89216 | AL65: 6095128 | AM65: 106580628 | AN65: -1865160.99 | AO65: -266451.57 | AP65: -2131612.56 | AQ65: 104449015.4 | AR65: -131890.5 | AS65: 104317124.9 | AT65: 81960891.92 | AU65: 22356233.02 | AV65: 11178116.51 | AX65: =SUM(AX8:AX64) -> 206663308.2 | AY65: =SUM(AY8:AY64) -> 19818634.59 | AZ65: =SUM(AZ8:AZ64) -> 3135532 | BA65: =SUM(BA8:BA64)+1 -> 8042585 | BB65: -0.4899999984
B66: TOTAL RSD (Operated + Chartered) | C66: =C65+C5 -> 28384 | D66: =D65+D5 -> 69759139 | E66: N/A | F66: =F65+F5 -> 21107022.01 | G66: 90866161.01 | H66: 763 | I66: 1096446.521 | J66: 2169 | K66: 18701382.74 | L66: 553 | M66: 8741394.743 | N66: 28539224 | O66: 119405385 | P66: 2399282.746 | Q66: 588 | R66: -579216.613 | S66: 1820066.133 | T66: 15939.54071 | U66: 1836005.674 | V66: 121241390.7 | W66: 0 | X66: =X65 -> -261686.9481 | Y66: =Y65+Y5 -> -261686.9481 | Z66: 120979703.7 | AA66: -838656.8419 | AB66: 120141046.9 | AC66: 101135644.1 | AD66: 19005402.81 | AE66: 9502701.405 | AF66: 113547956 | AG66: 6461532 | AH66: 588 | AI66: 2422528 | AJ66: 4 | AK66: =AK65+AK5 -> 5296 | AL66: =AL65+AL5 -> 2427824 | AM66: =AM65+AM5 -> 122437312 | AN66: 0 | AO66: =AO65 -> -266451.57 | AP66: =AP65+AP5 -> -266451.57 | AQ66: =AQ65+AQ5 -> 122170860.4 | AR66: =AR65+AR5 -> -299310.5 | AS66: =AS65+AS5 -> 121871549.9 | AT66: =AT65+AT5 -> 96501140.92 | AU66: 25370409.01 | AV66: =AV65+AV5 -> 12685204.51 | AX66: =AX65+AX5 -> 242012596.8 | AY66: =AY65+AY5 -> 22187905.91 | AZ66: =AZ65+AZ5 -> 3558281 | BA66: =BA65+BA5 -> 9126924 | BB66: -0.4949999973
B68: LDOE Administration Fee | C68: N/A | D68: N/A | E68: N/A | F68: N/A | M68: N/A | N68: N/A | O68: N/A | W68: N/A | X68: =-X65 -> 261686.9481 | Y68: =X68 -> 261686.9481 | Z68: =Y68 -> 261686.9481 | AA68: N/A | AB68: =Z68 -> 261686.9481 | AC68: =246169+18750 -> 264919 | AD68: =AB68-AC68 -> -3232.051934 | AF68: N/A | AG68: N/A | AN68: N/A | AO68: =-AO65 -> 266451.57 | AP68: =AO68 -> 266451.57 | AQ68: =AP68 -> 266451.57 | AR68: N/A | AS68: =AQ68 -> 266451.57 | AT68: =245832+3752 -> 249584 | AU68: =AS68-AT68 -> 16867.57 | AX68: =AS68+AB68 -> 528138.5181
B70: Total | C70: =C66 -> 28384 | D70: =D66 -> 69759139 | E70: N/A | F70: =F66 -> 21107022.01 | M70: =M66 -> 8741394.743 | N70: 28539224 | O70: 119405385 | R70: -579216.613 | S70: 1820066.133 | T70: 15939.54071 | U70: 1836005.674 | V70: 121241390.7 | W70: =W66 -> 0 | X70: =X68+X66 -> 0 | Y70: =Y68+Y66 -> 0 | Z70: =Z68+Z66 -> 121241390.7 | AA70: -838656.8419 | AB70: =AB66+AB68 -> 120402733.8 | AC70: 101400563.1 | AD70: 19002170.76 | AE70: 9502701.405 | AF70: =AF66 -> 113547956 | AG70: 6461532 | AK70: 5296 | AL70: 2427824 | AM70: 122437312 | AN70: 0 | AO70: =AO68+AO66 -> 0 | AP70: =AP68+AP66 -> 4.656612873e-10 | AQ70: =AQ68+AQ66 -> 122437312 | AR70: =AR66 -> -299310.5 | AS70: =AS66+AS68 -> 122138001.5 | AT70: =AT66+AT68 -> 96750724.92 | AU70: 25387276.58 | AV70: 12685204.51 | AX70: =AX66+AX68 -> 242540735.3 | AY70: =AY66+AY68 -> 22187905.91
AO72: =AO66 -> -266451.57
AO73: =-'[8]March 2012-13 Allocation'!$AQ$72 -> 249583.7675
AO74: =-'[9]July 2012-13 Allocation'!$T$66 -> 245832.3375
AO75: =SUM(AO72:AO73) -> -16867.8025
